Workbook

Sheet Sommaire
D4: Facturier V0
C9: Sommaire
D11: Nos données
D12: Sommaire
D13: Lisez moi !
D14: Base clients
D15: Base prestations
D16: outils TTC ou HT
D17: Devis
D18: Facture
D19: Chiffre affaires

Sheet Nos données
A1: v | B1: Outil de facturation Concilium
B3: Vos données
B4: Saisir dans les cases vertes uniquement
I5: oui
I6: non
B7: Votre nom ou raison sociale : | E7: Moyens de règlement clients :
B8: Complément raison sociale : | E8: chèque
B9: Adresse de votre siège : | E9: virement
B10: Code postal : | E10: carte bancaire
B11: Ville : | E11: espèces
B12: Téléphone :
B13: Numéro Siret :
B14: Numéro de TVA intracommunautaire (si applicable) :
B17: Taux de TVA :
B18: Taux 0 | C18: 0
B19: Taux 1 | C19: 0.055
B20: Taux 2 | C20: 0.1
B21: Taux 3 | C21: 0.2
B23: Etes-vous exonéré de TVA ? (par exemple oui si vous êtes en micro-entreprise)
B24: non

Sheet Lisez moi !
C6: Mode opératoire du fichier
C8: Dans l'onglet nos données, veuillez saisir les éléments relatifs à votre société (raison sociale, adresse, Siret etc.)
D9: Ceci met à jour les onglets facture et devis
C11: L'outil HT TTC a été ajouté enfin de répondre a besoins ponctuels
C13: Dans l'onglet base client, veuillez saisir tous les éléments relatifs aux clients (adresse, téléphone etc.)
D14: Un code unique sera affecté à chaque client
C16: Dans base prestation veuillez saisir tous les éléments relatifs aux devis
D17: En colonne i vous pouvez indiquer un numéro et le répéter si vous souhaitez indiquer un détail des lignes du devis pour un même client.
D18: Une fois le devis accepté et la prestation réalisée, vous pouvez indiquer une date de facture et un statut à éditer
D19: Colonne L, il existe un bouton permettant de définir un numéro de facture unique et chronologique
C21: L’onglet devis est automatique ; il convient uniquement de préciser le code client en H5 et le numéro de prestation en I5 afin de restituer le devis
D22: Deux commandes existent pour soit mettre en forme le document soit de générer un PDF
D23: Le PDF sera automatiquement placés au même endroit que le fichier excel
D24: Le programme est compatible Windows excel 2016 et Macintosh excel 2016
C26: L'onglet chiffre d'affaires se met à jour automatiquement à partir des données saisies en base prestation
D27: Les deux graphiques permettent de suivre :
E28: Le chiffre d'affaires réalisé
E29: Le chiffre d'affaires en attente

Sheet Base clients
A1: Base clients
A2: Saisissez vos clients ici (cases vertes uniquement)
A3: Pour trouver un client plus rapidement, faire Ctrl + touche F
A4: Remplir toutes les cellules vertes
A5: Nom Client | B5: Code | C5: Type | D5: Raison sociale | E5: Nom du contact | F5: Prénom du contact | G5: Nom du particulier | H5: Prénom du particulier | I5: Adresse | J5: C. postal | K5: Ville | L5: Téléphone | M5: Portable | N5: Site internet | O5: E-mail | P5: Remarques
A6: société x | B6: =IF(A6<>"",IFERROR(IF(LEN(ROW()-5)=1,"C000"&ROW()-5,IF(LEN(ROW()-5)=2,"C00"&ROW()-5,IF(LEN(ROW()-5)=3,"C0"&ROW()-5,IF(LEN(ROW()-5)=4,"C"&ROW()-5)))),""),"") -> C0001 | C6: Pro | D6: =IF(OR(C6="Part",C6=""),"",A6) -> société x | E6: Le Blanc | F6: Thomas | G6: =IF(C6="Part",MID(A6,1,LEN(A6)-LEN(H6)),"") ->  | H6: =IF(C6="Part",MID(A6,FIND("µ",SUBSTITUTE(A6," ","µ",LEN(A6)-LEN(SUBSTITUTE(A6," ",""))))+1,8000),"") ->  | I6: 343 rue de Neuilly | J6: 75016 | K6: Paris
A7: société Y | B7: =IF(A7<>"",IFERROR(IF(LEN(ROW()-5)=1,"C000"&ROW()-5,IF(LEN(ROW()-5)=2,"C00"&ROW()-5,IF(LEN(ROW()-5)=3,"C0"&ROW()-5,IF(LEN(ROW()-5)=4,"C"&ROW()-5)))),""),"") -> C0002 | C7: Pro | D7: société Y | E7: Bon | F7: Jean | G7: =IF(C7="Part",MID(A7,1,LEN(A7)-LEN(H7)),"") ->  | H7: =IF(C7="Part",MID(A7,FIND("µ",SUBSTITUTE(A7," ","µ",LEN(A7)-LEN(SUBSTITUTE(A7," ",""))))+1,8000),"") ->  | I7: rue du Paradis | J7: 75008 | K7: Paris
G17: =IF(C17="Part",MID(A17,1,LEN(A17)-LEN(H17)),"") -> 
D67: =IF(OR(C67="Part",C67=""),"",A67) -> 
G68: =IF(C68="Part",MID(A68,1,LEN(A68)-LEN(H68)),"") ->  | H68: =IF(C68="Part",MID(A68,FIND("µ",SUBSTITUTE(A68," ","µ",LEN(A68)-LEN(SUBSTITUTE(A68," ",""))))+1,8000),"") -> 
B69: =IF(A69<>"",IFERROR(IF(LEN(ROW()-5)=1,"C000"&ROW()-5,IF(LEN(ROW()-5)=2,"C00"&ROW()-5,IF(LEN(ROW()-5)=3,"C0"&ROW()-5,IF(LEN(ROW()-5)=4,"C"&ROW()-5)))),""),"") -> 
D131: =IF(OR(C131="Part",C131=""),"",A131) -> 
G132: =IF(C132="Part",MID(A132,1,LEN(A132)-LEN(H132)),"") ->  | H132: =IF(C132="Part",MID(A132,FIND("µ",SUBSTITUTE(A132," ","µ",LEN(A132)-LEN(SUBSTITUTE(A132," ",""))))+1,8000),"") -> 
B133: =IF(A133<>"",IFERROR(IF(LEN(ROW()-5)=1,"C000"&ROW()-5,IF(LEN(ROW()-5)=2,"C00"&ROW()-5,IF(LEN(ROW()-5)=3,"C0"&ROW()-5,IF(LEN(ROW()-5)=4,"C"&ROW()-5)))),""),"") -> 
D195: =IF(OR(C195="Part",C195=""),"",A195) -> 
G196: =IF(C196="Part",MID(A196,1,LEN(A196)-LEN(H196)),"") ->  | H196: =IF(C196="Part",MID(A196,FIND("µ",SUBSTITUTE(A196," ","µ",LEN(A196)-LEN(SUBSTITUTE(A196," ",""))))+1,8000),"") -> 
B197: =IF(A197<>"",IFERROR(IF(LEN(ROW()-5)=1,"C000"&ROW()-5,IF(LEN(ROW()-5)=2,"C00"&ROW()-5,IF(LEN(ROW()-5)=3,"C0"&ROW()-5,IF(LEN(ROW()-5)=4,"C"&ROW()-5)))),""),"") -> 
D259: =IF(OR(C259="Part",C259=""),"",A259) -> 
G260: =IF(C260="Part",MID(A260,1,LEN(A260)-LEN(H260)),"") ->  | H260: =IF(C260="Part",MID(A260,FIND("µ",SUBSTITUTE(A260," ","µ",LEN(A260)-LEN(SUBSTITUTE(A260," ",""))))+1,8000),"") -> 
B261: =IF(A261<>"",IFERROR(IF(LEN(ROW()-5)=1,"C000"&ROW()-5,IF(LEN(ROW()-5)=2,"C00"&ROW()-5,IF(LEN(ROW()-5)=3,"C0"&ROW()-5,IF(LEN(ROW()-5)=4,"C"&ROW()-5)))),""),"") -> 
D323: =IF(OR(C323="Part",C323=""),"",A323) -> 
G324: =IF(C324="Part",MID(A324,1,LEN(A324)-LEN(H324)),"") ->  | H324: =IF(C324="Part",MID(A324,FIND("µ",SUBSTITUTE(A324," ","µ",LEN(A324)-LEN(SUBSTITUTE(A324," ",""))))+1,8000),"") -> 
B325: =IF(A325<>"",IFERROR(IF(LEN(ROW()-5)=1,"C000"&ROW()-5,IF(LEN(ROW()-5)=2,"C00"&ROW()-5,IF(LEN(ROW()-5)=3,"C0"&ROW()-5,IF(LEN(ROW()-5)=4,"C"&ROW()-5)))),""),"") -> 
D387: =IF(OR(C387="Part",C387=""),"",A387) -> 
G388: =IF(C388="Part",MID(A388,1,LEN(A388)-LEN(H388)),"") ->  | H388: =IF(C388="Part",MID(A388,FIND("µ",SUBSTITUTE(A388," ","µ",LEN(A388)-LEN(SUBSTITUTE(A388," ",""))))+1,8000),"") -> 
B389: =IF(A389<>"",IFERROR(IF(LEN(ROW()-5)=1,"C000"&ROW()-5,IF(LEN(ROW()-5)=2,"C00"&ROW()-5,IF(LEN(ROW()-5)=3,"C0"&ROW()-5,IF(LEN(ROW()-5)=4,"C"&ROW()-5)))),""),"") -> 
D451: =IF(OR(C451="Part",C451=""),"",A451) -> 
G452: =IF(C452="Part",MID(A452,1,LEN(A452)-LEN(H452)),"") ->  | H452: =IF(C452="Part",MID(A452,FIND("µ",SUBSTITUTE(A452," ","µ",LEN(A452)-LEN(SUBSTITUTE(A452," ",""))))+1,8000),"") -> 
B453: =IF(A453<>"",IFERROR(IF(LEN(ROW()-5)=1,"C000"&ROW()-5,IF(LEN(ROW()-5)=2,"C00"&ROW()-5,IF(LEN(ROW()-5)=3,"C0"&ROW()-5,IF(LEN(ROW()-5)=4,"C"&ROW()-5)))),""),"") -> 
D515: =IF(OR(C515="Part",C515=""),"",A515) -> 
G516: =IF(C516="Part",MID(A516,1,LEN(A516)-LEN(H516)),"") ->  | H516: =IF(C516="Part",MID(A516,FIND("µ",SUBSTITUTE(A516," ","µ",LEN(A516)-LEN(SUBSTITUTE(A516," ",""))))+1,8000),"") -> 
B517: =IF(A517<>"",IFERROR(IF(LEN(ROW()-5)=1,"C000"&ROW()-5,IF(LEN(ROW()-5)=2,"C00"&ROW()-5,IF(LEN(ROW()-5)=3,"C0"&ROW()-5,IF(LEN(ROW()-5)=4,"C"&ROW()-5)))),""),"") -> 
D579: =IF(OR(C579="Part",C579=""),"",A579) -> 
G580: =IF(C580="Part",MID(A580,1,LEN(A580)-LEN(H580)),"") ->  | H580: =IF(C580="Part",MID(A580,FIND("µ",SUBSTITUTE(A580," ","µ",LEN(A580)-LEN(SUBSTITUTE(A580," ",""))))+1,8000),"") -> 
B581: =IF(A581<>"",IFERROR(IF(LEN(ROW()-5)=1,"C000"&ROW()-5,IF(LEN(ROW()-5)=2,"C00"&ROW()-5,IF(LEN(ROW()-5)=3,"C0"&ROW()-5,IF(LEN(ROW()-5)=4,"C"&ROW()-5)))),""),"") -> 
D643: =IF(OR(C643="Part",C643=""),"",A643) -> 
G644: =IF(C644="Part",MID(A644,1,LEN(A644)-LEN(H644)),"") ->  | H644: =IF(C644="Part",MID(A644,FIND("µ",SUBSTITUTE(A644," ","µ",LEN(A644)-LEN(SUBSTITUTE(A644," ",""))))+1,8000),"") -> 
B645: =IF(A645<>"",IFERROR(IF(LEN(ROW()-5)=1,"C000"&ROW()-5,IF(LEN(ROW()-5)=2,"C00"&ROW()-5,IF(LEN(ROW()-5)=3,"C0"&ROW()-5,IF(LEN(ROW()-5)=4,"C"&ROW()-5)))),""),"") -> 
D707: =IF(OR(C707="Part",C707=""),"",A707) -> 
G708: =IF(C708="Part",MID(A708,1,LEN(A708)-LEN(H708)),"") ->  | H708: =IF(C708="Part",MID(A708,FIND("µ",SUBSTITUTE(A708," ","µ",LEN(A708)-LEN(SUBSTITUTE(A708," ",""))))+1,8000),"") -> 
B709: =IF(A709<>"",IFERROR(IF(LEN(ROW()-5)=1,"C000"&ROW()-5,IF(LEN(ROW()-5)=2,"C00"&ROW()-5,IF(LEN(ROW()-5)=3,"C0"&ROW()-5,IF(LEN(ROW()-5)=4,"C"&ROW()-5)))),""),"") -> 
D734: =IF(OR(C734="Part",C734=""),"",A734) ->  | G734: =IF(C734="Part",MID(A734,1,LEN(A734)-LEN(H734)),"") ->  | H734: =IF(C734="Part",MID(A734,FIND("µ",SUBSTITUTE(A734," ","µ",LEN(A734)-LEN(SUBSTITUTE(A734," ",""))))+1,8000),"") -> 
B773: =IF(A773<>"",IFERROR(IF(LEN(ROW()-5)=1,"C000"&ROW()-5,IF(LEN(ROW()-5)=2,"C00"&ROW()-5,IF(LEN(ROW()-5)=3,"C0"&ROW()-5,IF(LEN(ROW()-5)=4,"C"&ROW()-5)))),""),"") -> 
D798: =IF(OR(C798="Part",C798=""),"",A798) ->  | G798: =IF(C798="Part",MID(A798,1,LEN(A798)-LEN(H798)),"") ->  | H798: =IF(C798="Part",MID(A798,FIND("µ",SUBSTITUTE(A798," ","µ",LEN(A798)-LEN(SUBSTITUTE(A798," ",""))))+1,8000),"") -> 
B837: =IF(A837<>"",IFERROR(IF(LEN(ROW()-5)=1,"C000"&ROW()-5,IF(LEN(ROW()-5)=2,"C00"&ROW()-5,IF(LEN(ROW()-5)=3,"C0"&ROW()-5,IF(LEN(ROW()-5)=4,"C"&ROW()-5)))),""),"") -> 
D862: =IF(OR(C862="Part",C862=""),"",A862) ->  | G862: =IF(C862="Part",MID(A862,1,LEN(A862)-LEN(H862)),"") ->  | H862: =IF(C862="Part",MID(A862,FIND("µ",SUBSTITUTE(A862," ","µ",LEN(A862)-LEN(SUBSTITUTE(A862," ",""))))+1,8000),"") -> 
B901: =IF(A901<>"",IFERROR(IF(LEN(ROW()-5)=1,"C000"&ROW()-5,IF(LEN(ROW()-5)=2,"C00"&ROW()-5,IF(LEN(ROW()-5)=3,"C0"&ROW()-5,IF(LEN(ROW()-5)=4,"C"&ROW()-5)))),""),"") -> 
D926: =IF(OR(C926="Part",C926=""),"",A926) ->  | G926: =IF(C926="Part",MID(A926,1,LEN(A926)-LEN(H926)),"") ->  | H926: =IF(C926="Part",MID(A926,FIND("µ",SUBSTITUTE(A926," ","µ",LEN(A926)-LEN(SUBSTITUTE(A926," ",""))))+1,8000),"") -> 
B965: =IF(A965<>"",IFERROR(IF(LEN(ROW()-5)=1,"C000"&ROW()-5,IF(LEN(ROW()-5)=2,"C00"&ROW()-5,IF(LEN(ROW()-5)=3,"C0"&ROW()-5,IF(LEN(ROW()-5)=4,"C"&ROW()-5)))),""),"") -> 
D990: =IF(OR(C990="Part",C990=""),"",A990) ->  | G990: =IF(C990="Part",MID(A990,1,LEN(A990)-LEN(H990)),"") ->  | H990: =IF(C990="Part",MID(A990,FIND("µ",SUBSTITUTE(A990," ","µ",LEN(A990)-LEN(SUBSTITUTE(A990," ",""))))+1,8000),"") -> 
B1029: =IF(A1029<>"",IFERROR(IF(LEN(ROW()-5)=1,"C000"&ROW()-5,IF(LEN(ROW()-5)=2,"C00"&ROW()-5,IF(LEN(ROW()-5)=3,"C0"&ROW()-5,IF(LEN(ROW()-5)=4,"C"&ROW()-5)))),""),"") -> 
D1054: =IF(OR(C1054="Part",C1054=""),"",A1054) ->  | G1054: =IF(C1054="Part",MID(A1054,1,LEN(A1054)-LEN(H1054)),"") ->  | H1054: =IF(C1054="Part",MID(A1054,FIND("µ",SUBSTITUTE(A1054," ","µ",LEN(A1054)-LEN(SUBSTITUTE(A1054," ",""))))+1,8000),"") -> 
B1093: =IF(A1093<>"",IFERROR(IF(LEN(ROW()-5)=1,"C000"&ROW()-5,IF(LEN(ROW()-5)=2,"C00"&ROW()-5,IF(LEN(ROW()-5)=3,"C0"&ROW()-5,IF(LEN(ROW()-5)=4,"C"&ROW()-5)))),""),"") -> 
D1118: =IF(OR(C1118="Part",C1118=""),"",A1118) ->  | G1118: =IF(C1118="Part",MID(A1118,1,LEN(A1118)-LEN(H1118)),"") ->  | H1118: =IF(C1118="Part",MID(A1118,FIND("µ",SUBSTITUTE(A1118," ","µ",LEN(A1118)-LEN(SUBSTITUTE(A1118," ",""))))+1,8000),"") -> 
B1157: =IF(A1157<>"",IFERROR(IF(LEN(ROW()-5)=1,"C000"&ROW()-5,IF(LEN(ROW()-5)=2,"C00"&ROW()-5,IF(LEN(ROW()-5)=3,"C0"&ROW()-5,IF(LEN(ROW()-5)=4,"C"&ROW()-5)))),""),"") -> 
D1182: =IF(OR(C1182="Part",C1182=""),"",A1182) ->  | G1182: =IF(C1182="Part",MID(A1182,1,LEN(A1182)-LEN(H1182)),"") ->  | H1182: =IF(C1182="Part",MID(A1182,FIND("µ",SUBSTITUTE(A1182," ","µ",LEN(A1182)-LEN(SUBSTITUTE(A1182," ",""))))+1,8000),"") -> 
B1221: =IF(A1221<>"",IFERROR(IF(LEN(ROW()-5)=1,"C000"&ROW()-5,IF(LEN(ROW()-5)=2,"C00"&ROW()-5,IF(LEN(ROW()-5)=3,"C0"&ROW()-5,IF(LEN(ROW()-5)=4,"C"&ROW()-5)))),""),"") -> 
D1246: =IF(OR(C1246="Part",C1246=""),"",A1246) ->  | G1246: =IF(C1246="Part",MID(A1246,1,LEN(A1246)-LEN(H1246)),"") ->  | H1246: =IF(C1246="Part",MID(A1246,FIND("µ",SUBSTITUTE(A1246," ","µ",LEN(A1246)-LEN(SUBSTITUTE(A1246," ",""))))+1,8000),"") -> 
B1285: =IF(A1285<>"",IFERROR(IF(LEN(ROW()-5)=1,"C000"&ROW()-5,IF(LEN(ROW()-5)=2,"C00"&ROW()-5,IF(LEN(ROW()-5)=3,"C0"&ROW()-5,IF(LEN(ROW()-5)=4,"C"&ROW()-5)))),""),"") -> 
D1310: =IF(OR(C1310="Part",C1310=""),"",A1310) ->  | G1310: =IF(C1310="Part",MID(A1310,1,LEN(A1310)-LEN(H1310)),"") ->  | H1310: =IF(C1310="Part",MID(A1310,FIND("µ",SUBSTITUTE(A1310," ","µ",LEN(A1310)-LEN(SUBSTITUTE(A1310," ",""))))+1,8000),"") -> 
B1349: =IF(A1349<>"",IFERROR(IF(LEN(ROW()-5)=1,"C000"&ROW()-5,IF(LEN(ROW()-5)=2,"C00"&ROW()-5,IF(LEN(ROW()-5)=3,"C0"&ROW()-5,IF(LEN(ROW()-5)=4,"C"&ROW()-5)))),""),"") -> 
D1374: =IF(OR(C1374="Part",C1374=""),"",A1374) ->  | G1374: =IF(C1374="Part",MID(A1374,1,LEN(A1374)-LEN(H1374)),"") ->  | H1374: =IF(C1374="Part",MID(A1374,FIND("µ",SUBSTITUTE(A1374," ","µ",LEN(A1374)-LEN(SUBSTITUTE(A1374," ",""))))+1,8000),"") -> 
B1413: =IF(A1413<>"",IFERROR(IF(LEN(ROW()-5)=1,"C000"&ROW()-5,IF(LEN(ROW()-5)=2,"C00"&ROW()-5,IF(LEN(ROW()-5)=3,"C0"&ROW()-5,IF(LEN(ROW()-5)=4,"C"&ROW()-5)))),""),"") -> 
D1438: =IF(OR(C1438="Part",C1438=""),"",A1438) ->  | G1438: =IF(C1438="Part",MID(A1438,1,LEN(A1438)-LEN(H1438)),"") ->  | H1438: =IF(C1438="Part",MID(A1438,FIND("µ",SUBSTITUTE(A1438," ","µ",LEN(A1438)-LEN(SUBSTITUTE(A1438," ",""))))+1,8000),"") -> 
B1477: =IF(A1477<>"",IFERROR(IF(LEN(ROW()-5)=1,"C000"&ROW()-5,IF(LEN(ROW()-5)=2,"C00"&ROW()-5,IF(LEN(ROW()-5)=3,"C0"&ROW()-5,IF(LEN(ROW()-5)=4,"C"&ROW()-5)))),""),"") -> 
D1502: =IF(OR(C1502="Part",C1502=""),"",A1502) ->  | G1502: =IF(C1502="Part",MID(A1502,1,LEN(A1502)-LEN(H1502)),"") ->  | H1502: =IF(C1502="Part",MID(A1502,FIND("µ",SUBSTITUTE(A1502," ","µ",LEN(A1502)-LEN(SUBSTITUTE(A1502," ",""))))+1,8000),"") -> 
B1541: =IF(A1541<>"",IFERROR(IF(LEN(ROW()-5)=1,"C000"&ROW()-5,IF(LEN(ROW()-5)=2,"C00"&ROW()-5,IF(LEN(ROW()-5)=3,"C0"&ROW()-5,IF(LEN(ROW()-5)=4,"C"&ROW()-5)))),""),"") -> 
D1566: =IF(OR(C1566="Part",C1566=""),"",A1566) ->  | G1566: =IF(C1566="Part",MID(A1566,1,LEN(A1566)-LEN(H1566)),"") ->  | H1566: =IF(C1566="Part",MID(A1566,FIND("µ",SUBSTITUTE(A1566," ","µ",LEN(A1566)-LEN(SUBSTITUTE(A1566," ",""))))+1,8000),"") -> 
B1605: =IF(A1605<>"",IFERROR(IF(LEN(ROW()-5)=1,"C000"&ROW()-5,IF(LEN(ROW()-5)=2,"C00"&ROW()-5,IF(LEN(ROW()-5)=3,"C0"&ROW()-5,IF(LEN(ROW()-5)=4,"C"&ROW()-5)))),""),"") -> 
D1630: =IF(OR(C1630="Part",C1630=""),"",A1630) ->  | G1630: =IF(C1630="Part",MID(A1630,1,LEN(A1630)-LEN(H1630)),"") ->  | H1630: =IF(C1630="Part",MID(A1630,FIND("µ",SUBSTITUTE(A1630," ","µ",LEN(A1630)-LEN(SUBSTITUTE(A1630," ",""))))+1,8000),"") -> 
B1669: =IF(A1669<>"",IFERROR(IF(LEN(ROW()-5)=1,"C000"&ROW()-5,IF(LEN(ROW()-5)=2,"C00"&ROW()-5,IF(LEN(ROW()-5)=3,"C0"&ROW()-5,IF(LEN(ROW()-5)=4,"C"&ROW()-5)))),""),"") -> 
D1694: =IF(OR(C1694="Part",C1694=""),"",A1694) ->  | G1694: =IF(C1694="Part",MID(A1694,1,LEN(A1694)-LEN(H1694)),"") ->  | H1694: =IF(C1694="Part",MID(A1694,FIND("µ",SUBSTITUTE(A1694," ","µ",LEN(A1694)-LEN(SUBSTITUTE(A1694," ",""))))+1,8000),"") -> 
B1733: =IF(A1733<>"",IFERROR(IF(LEN(ROW()-5)=1,"C000"&ROW()-5,IF(LEN(ROW()-5)=2,"C00"&ROW()-5,IF(LEN(ROW()-5)=3,"C0"&ROW()-5,IF(LEN(ROW()-5)=4,"C"&ROW()-5)))),""),"") -> 
D1758: =IF(OR(C1758="Part",C1758=""),"",A1758) ->  | G1758: =IF(C1758="Part",MID(A1758,1,LEN(A1758)-LEN(H1758)),"") ->  | H1758: =IF(C1758="Part",MID(A1758,FIND("µ",SUBSTITUTE(A1758," ","µ",LEN(A1758)-LEN(SUBSTITUTE(A1758," ",""))))+1,8000),"") -> 
B1797: =IF(A1797<>"",IFERROR(IF(LEN(ROW()-5)=1,"C000"&ROW()-5,IF(LEN(ROW()-5)=2,"C00"&ROW()-5,IF(LEN(ROW()-5)=3,"C0"&ROW()-5,IF(LEN(ROW()-5)=4,"C"&ROW()-5)))),""),"") -> 

Sheet Base prestations
N1: Base prestations | O1: Base clients | P1: PARAM | Q1: PARAM | R1: PARAM | S1: PARAM | T1: PARAM | U1: PARAM
N2: =COUNTIFS(L:L,"à éditer") -> 1 | S2: mois | T2: année | U2: hypothèses
B4: Base de devis et facturation | I4: =IF(MONTH(TODAY())<10,"0"&MONTH(TODAY()),MONTH(TODAY())) -> 08
B5: Produits et services | J5: Faire "control et ; " pour insérer la date du jour. | L5: Choix d'édition de facture. | Q5: =_xlfn.MAXIFS(N:N,L:L,"définitif") -> 0
A6: index | B6: Code client | C6: Description | D6: Prix de vente € HT | E6: Acompte de 30% à recevoir ? | F6: Taux TVA | G6: Remise | H6: Moyens de paiement | I6: Numéro de prestation | J6: Date de devis | K6: Date de facture | L6: Edition ? | M6: Raison de l'abandon | N6: Numéro de facture | O6: Type | P6: libre | Q6: Incrémentation n° facture | R6: total à éditer | S6: MOIS | T6: ANNEE | U6: Etat | V6: Pour Tiny référence devis
A7: 1 | B7: C0001 | C7: prestation 1 | D7: 300 | E7: OUI | F7: 0.2 | H7: virement | I7: 1 | J7: 2020-05-01 | L7: à éditer | N7: =IF(L7="à éditer",IF(B7=B6,N6,$Q$5+IF(Q7=R7,Q7,R7)),"")+22000 -> 22001 | O7: =IFERROR(INDIRECT("'"&$O$1&"'!C"&MATCH(B7,INDIRECT("'"&$O$1&"'!B:B"),0)),"") -> Pro | Q7: =COUNTIFS(L:L,"à éditer",B:B,B7) -> 1 | R7: =COUNTIFS($L$7:L7,"à éditer",$B$7:B7,B7) -> 1 | S7: =IFERROR(MONTH(J7),"") -> 5 | T7: =YEAR(J7) -> 2020 | U7: =IF(OR(L7="définitif",L7="à éditer",L7="en cours de réalisation"),"Réalisé",IF(OR(L7="projet annulé",L7=""),"Non réalisé",IF(L7="en attente","En attente",""))) -> Réalisé
A8: =A7+1 -> 2 | B8: C0001 | C8: Prestation 2 | D8: 400 | E8: OUI | F8: 0.1 | G8: 0.05 | H8: virement | I8: 1 | N8: =IF(L8="à éditer",IF(B8=B7,N7,$Q$5+IF(Q8=R8,Q8,R8)),"") ->  | O8: =IFERROR(INDIRECT("'"&$O$1&"'!C"&MATCH(B8,INDIRECT("'"&$O$1&"'!B:B"),0)),"") -> Pro | Q8: =COUNTIFS(L:L,"à éditer",B:B,B8) -> 1 | R8: =COUNTIFS($L$7:L8,"à éditer") -> 1 | S8: =IFERROR(MONTH(J8),"") -> 1 | T8: =YEAR(J8) -> 1900 | U8: =IF(OR(L8="définitif",L8="à éditer",L8="en cours de réalisation"),"Réalisé",IF(OR(L8="projet annulé",L8=""),"Non réalisé",IF(L8="en attente","En attente",""))) -> Non réalisé
A9: 3 | B9: C0002 | C9: prestation 1 | D9: 300 | E9: NON | F9: 0.2 | H9: virement | I9: 2 | O9: Pro | Q9: 0 | R9: =COUNTIFS($L$7:L9,"à éditer") -> 1 | S9: 1 | T9: 1900 | U9: Non réalisé
A10: 4 | Q10: 0 | R10: =COUNTIFS($L$7:L10,"à éditer") -> 1 | S10: 1 | T10: 1900 | U10: Non réalisé
A11: 5 | Q11: 0 | R11: =COUNTIFS($L$7:L11,"à éditer") -> 1 | S11: 1 | T11: 1900 | U11: Non réalisé
A12: 6 | Q12: 0 | R12: =COUNTIFS($L$7:L12,"à éditer") -> 1 | S12: 1 | T12: 1900 | U12: Non réalisé
A13: 7 | O13: Pro | Q13: 0 | R13: =COUNTIFS($L$7:L13,"à éditer") -> 1 | S13: 1 | T13: 1900 | U13: Non réalisé
A14: 8 | O14: =IFERROR(INDIRECT("'"&$O$1&"'!C"&MATCH(B14,INDIRECT("'"&$O$1&"'!B:B"),0)),"") ->  | Q14: 0 | R14: =COUNTIFS($L$7:L14,"à éditer") -> 1 | S14: 1 | T14: 1900 | U14: Non réalisé
A15: 9 | Q15: 0 | R15: =COUNTIFS($L$7:L16,"à éditer") -> 1 | S15: 1 | T15: 1900 | U15: Non réalisé
A16: 10 | Q16: 0 | R16: =COUNTIFS($L$7:L16,"à éditer") -> 1 | S16: 1 | T16: 1900 | U16: Non réalisé
A17: 11 | Q17: 0 | R17: =COUNTIFS($L$7:L17,"à éditer") -> 1 | S17: 1 | T17: 1900 | U17: Non réalisé
A18: 12 | Q18: 0 | R18: =COUNTIFS($L$7:L18,"à éditer") -> 1 | S18: 1 | T18: 1900 | U18: Non réalisé
A19: 13 | Q19: 0 | R19: =COUNTIFS($L$7:L19,"à éditer") -> 1 | S19: 1 | T19: 1900 | U19: Non réalisé
A20: 14 | O20: =IFERROR(INDIRECT("'"&$O$1&"'!C"&MATCH(B20,INDIRECT("'"&$O$1&"'!B:B"),0)),"") ->  | Q20: =COUNTIFS(L:L,"à éditer",B:B,B20) -> 0 | R20: =COUNTIFS($L$7:L20,"à éditer") -> 1 | S20: 1 | T20: 1900 | U20: Non réalisé
A21: 15 | Q21: 0 | R21: =COUNTIFS($L$7:L21,"à éditer") -> 1 | S21: 1 | T21: 1900 | U21: Non réalisé
A22: 16 | Q22: 0 | R22: =COUNTIFS($L$7:L22,"à éditer") -> 1 | S22: 1 | T22: 1900 | U22: Non réalisé
A23: 17 | Q23: 0 | R23: =COUNTIFS($L$7:L23,"à éditer") -> 1 | S23: 1 | T23: 1900 | U23: Non réalisé
A24: 18 | Q24: 0 | R24: =COUNTIFS($L$7:L24,"à éditer") -> 1 | S24: 1 | T24: 1900 | U24: Non réalisé
A25: 19 | Q25: 0 | R25: =COUNTIFS($L$7:L25,"à éditer") -> 1 | S25: 1 | T25: 1900 | U25: Non réalisé
A26: 20 | Q26: 0 | R26: =COUNTIFS($L$7:L26,"à éditer") -> 1 | S26: 1 | T26: 1900 | U26: Non réalisé
A27: 21 | Q27: 0 | R27: =COUNTIFS($L$7:L27,"à éditer") -> 1 | S27: 1 | T27: 1900 | U27: Non réalisé
A28: 22 | Q28: 0 | R28: =COUNTIFS($L$7:L28,"à éditer") -> 1 | S28: 1 | T28: 1900 | U28: Non réalisé
A29: 23 | Q29: 0 | R29: =COUNTIFS($L$7:L29,"à éditer") -> 1 | S29: 1 | T29: 1900 | U29: Non réalisé
A30: 24 | Q30: 0 | R30: =COUNTIFS($L$7:L30,"à éditer") -> 1 | S30: 1 | T30: 1900 | U30: Non réalisé
A31: 25 | N31: =IF(L31="à éditer",IF(B31=B30,N30,$Q$5+IF(Q31=R31,Q31,R31)),"") ->  | Q31: 0 | R31: =COUNTIFS($L$7:L31,"à éditer") -> 1 | S31: 1 | T31: 1900 | U31: Non réalisé
A32: 26 | Q32: 0 | R32: =COUNTIFS($L$7:L32,"à éditer") -> 1 | S32: 1 | T32: 1900 | U32: Non réalisé
A33: 27 | Q33: 0 | R33: =COUNTIFS($L$7:L33,"à éditer") -> 1 | S33: 1 | T33: 1900 | U33: Non réalisé
A34: 28 | Q34: 0 | R34: =COUNTIFS($L$7:L34,"à éditer") -> 1 | S34: 1 | T34: 1900 | U34: Non réalisé
A35: 29 | Q35: 0 | R35: =COUNTIFS($L$7:L35,"à éditer") -> 1 | S35: 1 | T35: 1900 | U35: Non réalisé
A36: 30 | Q36: 0 | R36: =COUNTIFS($L$7:L36,"à éditer") -> 1 | S36: 1 | T36: 1900 | U36: Non réalisé
A37: 31 | Q37: 0 | R37: =COUNTIFS($L$7:L37,"à éditer") -> 1 | S37: 1 | T37: 1900 | U37: Non réalisé
A38: 32 | Q38: 0 | R38: =COUNTIFS($L$7:L38,"à éditer") -> 1 | S38: 1 | T38: 1900 | U38: Non réalisé
A39: 33 | Q39: 0 | R39: =COUNTIFS($L$7:L39,"à éditer") -> 1 | S39: 1 | T39: 1900 | U39: Non réalisé
A40: 34 | Q40: 0 | R40: =COUNTIFS($L$7:L40,"à éditer") -> 1 | S40: 1 | T40: 1900 | U40: Non réalisé
A41: 35 | Q41: 0 | R41: =COUNTIFS($L$7:L41,"à éditer") -> 1 | S41: 1 | T41: 1900 | U41: Non réalisé
A42: 36 | Q42: 0 | R42: =COUNTIFS($L$7:L42,"à éditer") -> 1 | S42: 1 | T42: 1900 | U42: Non réalisé
A43: 37 | Q43: 0 | R43: =COUNTIFS($L$7:L43,"à éditer") -> 1 | S43: 1 | T43: 1900 | U43: Non réalisé
A44: 38 | Q44: 0 | R44: =COUNTIFS($L$7:L44,"à éditer") -> 1 | S44: 1 | T44: 1900 | U44: Non réalisé
A45: 39 | Q45: 0 | R45: =COUNTIFS($L$7:L45,"à éditer") -> 1 | S45: 1 | T45: 1900 | U45: Non réalisé
A46: 40 | Q46: 0 | R46: =COUNTIFS($L$7:L46,"à éditer") -> 1 | S46: 1 | T46: 1900 | U46: Non réalisé
A47: 41 | Q47: 0 | R47: =COUNTIFS($L$7:L47,"à éditer") -> 1 | S47: 1 | T47: 1900 | U47: Non réalisé
A48: 42 | Q48: 0 | R48: =COUNTIFS($L$7:L48,"à éditer") -> 1 | S48: 1 | T48: 1900 | U48: Non réalisé
A49: 43 | Q49: 0 | R49: =COUNTIFS($L$7:L49,"à éditer") -> 1 | S49: 1 | T49: 1900 | U49: Non réalisé
A50: 44 | Q50: 0 | R50: =COUNTIFS($L$7:L50,"à éditer") -> 1 | S50: 1 | T50: 1900 | U50: Non réalisé
A51: 45 | Q51: 0 | R51: =COUNTIFS($L$7:L51,"à éditer") -> 1 | S51: 1 | T51: 1900 | U51: Non réalisé
A52: 46 | Q52: 0 | R52: =COUNTIFS($L$7:L52,"à éditer") -> 1 | S52: 1 | T52: 1900 | U52: Non réalisé
A53: 47 | Q53: 0 | R53: =COUNTIFS($L$7:L53,"à éditer") -> 1 | S53: 1 | T53: 1900 | U53: Non réalisé
A54: 48 | Q54: 0 | R54: =COUNTIFS($L$7:L54,"à éditer") -> 1 | S54: 1 | T54: 1900 | U54: Non réalisé
A55: 49 | Q55: 0 | R55: =COUNTIFS($L$7:L55,"à éditer") -> 1 | S55: 1 | T55: 1900 | U55: Non réalisé
A56: 50 | Q56: 0 | R56: =COUNTIFS($L$7:L56,"à éditer") -> 1 | S56: 1 | T56: 1900 | U56: Non réalisé
A57: 51 | Q57: 0 | R57: =COUNTIFS($L$7:L57,"à éditer") -> 1 | S57: 1 | T57: 1900 | U57: Non réalisé
A58: 52 | Q58: 0 | R58: =COUNTIFS($L$7:L58,"à éditer") -> 1 | S58: 1 | T58: 1900 | U58: Non réalisé
A59: 53 | Q59: 0 | R59: =COUNTIFS($L$7:L59,"à éditer") -> 1 | S59: 1 | T59: 1900 | U59: Non réalisé
A60: 54 | Q60: 0 | R60: =COUNTIFS($L$7:L60,"à éditer") -> 1 | S60: 1 | T60: 1900 | U60: Non réalisé
A61: 55 | Q61: 0 | R61: =COUNTIFS($L$7:L61,"à éditer") -> 1 | S61: 1 | T61: 1900 | U61: Non réalisé
A62: 56 | Q62: 0 | R62: =COUNTIFS($L$7:L62,"à éditer") -> 1 | S62: 1 | T62: 1900 | U62: Non réalisé
A63: 57 | Q63: 0 | R63: =COUNTIFS($L$7:L63,"à éditer") -> 1 | S63: 1 | T63: 1900 | U63: Non réalisé
A64: 58 | Q64: 0 | R64: =COUNTIFS($L$7:L64,"à éditer") -> 1 | S64: 1 | T64: 1900 | U64: Non réalisé
A65: 59 | Q65: 0 | R65: =COUNTIFS($L$7:L65,"à éditer") -> 1 | S65: 1 | T65: 1900 | U65: Non réalisé
A66: 60 | Q66: 0 | R66: =COUNTIFS($L$7:L66,"à éditer") -> 1 | S66: 1 | T66: 1900 | U66: Non réalisé
A67: 61 | Q67: 0 | R67: =COUNTIFS($L$7:L67,"à éditer") -> 1 | S67: 1 | T67: 1900 | U67: Non réalisé
A68: 62 | Q68: 0 | R68: =COUNTIFS($L$7:L68,"à éditer") -> 1 | S68: 1 | T68: 1900 | U68: Non réalisé
A69: 63 | Q69: 0 | R69: =COUNTIFS($L$7:L69,"à éditer") -> 1 | S69: 1 | T69: 1900 | U69: Non réalisé
A70: 64 | Q70: 0 | R70: =COUNTIFS($L$7:L70,"à éditer") -> 1 | S70: 1 | T70: 1900 | U70: Non réalisé
A71: 65 | Q71: 0 | R71: =COUNTIFS($L$7:L71,"à éditer") -> 1 | S71: 1 | T71: 1900 | U71: Non réalisé
A72: =A71+1 -> 66 | Q72: 0 | R72: =COUNTIFS($L$7:L72,"à éditer") -> 1 | S72: =IFERROR(MONTH(J72),"") -> 1 | T72: =YEAR(J72) -> 1900 | U72: =IF(OR(L72="définitif",L72="à éditer",L72="en cours de réalisation"),"Réalisé",IF(OR(L72="projet annulé",L72=""),"Non réalisé",IF(L72="en attente","En attente",""))) -> Non réalisé
A73: 67 | Q73: 0 | R73: =COUNTIFS($L$7:L73,"à éditer") -> 1 | S73: 1 | T73: 1900 | U73: Non réalisé
A74: 68 | Q74: 0 | R74: =COUNTIFS($L$7:L74,"à éditer") -> 1 | S74: 1 | T74: 1900 | U74: Non réalisé
A75: 69 | Q75: 0 | R75: =COUNTIFS($L$7:L75,"à éditer") -> 1 | S75: 1 | T75: 1900 | U75: Non réalisé
A76: 70 | Q76: 0 | R76: =COUNTIFS($L$7:L76,"à éditer") -> 1 | S76: 1 | T76: 1900 | U76: Non réalisé
A77: 71 | Q77: 0 | R77: =COUNTIFS($L$7:L77,"à éditer") -> 1 | S77: 1 | T77: 1900 | U77: Non réalisé
A78: 72 | Q78: 0 | R78: =COUNTIFS($L$7:L78,"à éditer") -> 1 | S78: 1 | T78: 1900 | U78: Non réalisé
A79: 73 | Q79: 0 | R79: =COUNTIFS($L$7:L79,"à éditer") -> 1 | S79: 1 | T79: 1900 | U79: Non réalisé
A80: 74 | Q80: 0 | R80: =COUNTIFS($L$7:L80,"à éditer") -> 1 | S80: 1 | T80: 1900 | U80: Non réalisé
A81: 75 | Q81: 0 | R81: =COUNTIFS($L$7:L81,"à éditer") -> 1 | S81: 1 | T81: 1900 | U81: Non réalisé
A82: 76 | Q82: 0 | R82: =COUNTIFS($L$7:L82,"à éditer") -> 1 | S82: 1 | T82: 1900 | U82: Non réalisé
A83: 77 | Q83: 0 | R83: =COUNTIFS($L$7:L83,"à éditer") -> 1 | S83: 1 | T83: 1900 | U83: Non réalisé
A84: 78 | O84: =IFERROR(INDIRECT("'"&$O$1&"'!C"&MATCH(B84,INDIRECT("'"&$O$1&"'!B:B"),0)),"") ->  | Q84: =COUNTIFS(L:L,"à éditer",B:B,B84) -> 0 | R84: =COUNTIFS($L$7:L84,"à éditer") -> 1 | S84: 1 | T84: 1900 | U84: Non réalisé
A85: 79 | Q85: 0 | R85: =COUNTIFS($L$7:L85,"à éditer") -> 1 | S85: 1 | T85: 1900 | U85: Non réalisé
A86: 80 | N86: =IF(L86="à éditer",IF(B86=B85,N85,$Q$5+IF(Q86=R86,Q86,R86)),"") ->  | Q86: 0 | R86: =COUNTIFS($L$7:L86,"à éditer") -> 1 | S86: 1 | T86: 1900 | U86: Non réalisé
A87: 81 | Q87: 0 | R87: =COUNTIFS($L$7:L87,"à éditer") -> 1 | S87: 1 | T87: 1900 | U87: Non réalisé
A88: 82 | Q88: 0 | R88: =COUNTIFS($L$7:L88,"à éditer") -> 1 | S88: 1 | T88: 1900 | U88: Non réalisé
A89: 83 | Q89: 0 | R89: =COUNTIFS($L$7:L89,"à éditer") -> 1 | S89: 1 | T89: 1900 | U89: Non réalisé
A90: 84 | Q90: 0 | R90: =COUNTIFS($L$7:L90,"à éditer") -> 1 | S90: 1 | T90: 1900 | U90: Non réalisé
A91: 85 | Q91: 0 | R91: =COUNTIFS($L$7:L91,"à éditer") -> 1 | S91: 1 | T91: 1900 | U91: Non réalisé
A92: 86 | Q92: 0 | R92: =COUNTIFS($L$7:L92,"à éditer") -> 1 | S92: 1 | T92: 1900 | U92: Non réalisé
A93: 87 | Q93: 0 | R93: =COUNTIFS($L$7:L93,"à éditer") -> 1 | S93: 1 | T93: 1900 | U93: Non réalisé
A94: 88 | Q94: 0 | R94: =COUNTIFS($L$7:L94,"à éditer") -> 1 | S94: 1 | T94: 1900 | U94: Non réalisé
A95: 89 | Q95: 0 | R95: =COUNTIFS($L$7:L95,"à éditer") -> 1 | S95: 1 | T95: 1900 | U95: Non réalisé
A96: 90 | Q96: 0 | R96: =COUNTIFS($L$7:L96,"à éditer") -> 1 | S96: 1 | T96: 1900 | U96: Non réalisé
A97: 91 | Q97: 0 | R97: =COUNTIFS($L$7:L97,"à éditer") -> 1 | S97: 1 | T97: 1900 | U97: Non réalisé
A98: 92 | Q98: 0 | R98: =COUNTIFS($L$7:L98,"à éditer") -> 1 | S98: 1 | T98: 1900 | U98: Non réalisé
A99: 93 | Q99: 0 | R99: =COUNTIFS($L$7:L99,"à éditer") -> 1 | S99: 1 | T99: 1900 | U99: Non réalisé
A100: 94 | Q100: 0 | R100: =COUNTIFS($L$7:L100,"à éditer") -> 1 | S100: 1 | T100: 1900 | U100: Non réalisé
A101: 95 | Q101: 0 | R101: =COUNTIFS($L$7:L101,"à éditer") -> 1 | S101: 1 | T101: 1900 | U101: Non réalisé
A102: 96 | Q102: 0 | R102: =COUNTIFS($L$7:L102,"à éditer") -> 1 | S102: 1 | T102: 1900 | U102: Non réalisé
A103: 97 | Q103: 0 | R103: =COUNTIFS($L$7:L103,"à éditer") -> 1 | S103: 1 | T103: 1900 | U103: Non réalisé
A104: 98 | Q104: 0 | R104: =COUNTIFS($L$7:L104,"à éditer") -> 1 | S104: 1 | T104: 1900 | U104: Non réalisé
A105: 99 | Q105: 0 | R105: =COUNTIFS($L$7:L105,"à éditer") -> 1 | S105: 1 | T105: 1900 | U105: Non réalisé
A106: 100 | Q106: 0 | R106: =COUNTIFS($L$7:L106,"à éditer") -> 1 | S106: 1 | T106: 1900 | U106: Non réalisé
A107: 101 | Q107: 0 | R107: =COUNTIFS($L$7:L107,"à éditer") -> 1 | S107: 1 | T107: 1900 | U107: Non réalisé
A108: 102 | Q108: 0 | R108: =COUNTIFS($L$7:L108,"à éditer") -> 1 | S108: 1 | T108: 1900 | U108: Non réalisé
A109: 103 | Q109: 0 | R109: =COUNTIFS($L$7:L109,"à éditer") -> 1 | S109: 1 | T109: 1900 | U109: Non réalisé
A110: 104 | Q110: 0 | R110: =COUNTIFS($L$7:L110,"à éditer") -> 1 | S110: 1 | T110: 1900 | U110: Non réalisé
A111: 105 | Q111: 0 | R111: =COUNTIFS($L$7:L111,"à éditer") -> 1 | S111: 1 | T111: 1900 | U111: Non réalisé
A112: 106 | Q112: 0 | R112: =COUNTIFS($L$7:L112,"à éditer") -> 1 | S112: 1 | T112: 1900 | U112: Non réalisé
A113: 107 | Q113: 0 | R113: =COUNTIFS($L$7:L113,"à éditer") -> 1 | S113: 1 | T113: 1900 | U113: Non réalisé
A114: 108 | Q114: 0 | R114: =COUNTIFS($L$7:L114,"à éditer") -> 1 | S114: 1 | T114: 1900 | U114: Non réalisé
A115: 109 | Q115: 0 | R115: =COUNTIFS($L$7:L115,"à éditer") -> 1 | S115: 1 | T115: 1900 | U115: Non réalisé
A116: 110 | Q116: 0 | R116: =COUNTIFS($L$7:L116,"à éditer") -> 1 | S116: 1 | T116: 1900 | U116: Non réalisé
A117: 111 | Q117: 0 | R117: =COUNTIFS($L$7:L117,"à éditer") -> 1 | S117: 1 | T117: 1900 | U117: Non réalisé
A118: 112 | Q118: 0 | R118: =COUNTIFS($L$7:L118,"à éditer") -> 1 | S118: 1 | T118: 1900 | U118: Non réalisé
A119: 113 | Q119: 0 | R119: =COUNTIFS($L$7:L119,"à éditer") -> 1 | S119: 1 | T119: 1900 | U119: Non réalisé
A120: 114 | Q120: 0 | R120: =COUNTIFS($L$7:L120,"à éditer") -> 1 | S120: 1 | T120: 1900 | U120: Non réalisé
A121: 115 | Q121: 0 | R121: =COUNTIFS($L$7:L121,"à éditer") -> 1 | S121: 1 | T121: 1900 | U121: Non réalisé
A122: 116 | Q122: 0 | R122: =COUNTIFS($L$7:L122,"à éditer") -> 1 | S122: 1 | T122: 1900 | U122: Non réalisé
A123: 117 | Q123: 0 | R123: =COUNTIFS($L$7:L123,"à éditer") -> 1 | S123: 1 | T123: 1900 | U123: Non réalisé
A124: 118 | Q124: 0 | R124: =COUNTIFS($L$7:L124,"à éditer") -> 1 | S124: 1 | T124: 1900 | U124: Non réalisé
A125: 119 | Q125: 0 | R125: =COUNTIFS($L$7:L125,"à éditer") -> 1 | S125: 1 | T125: 1900 | U125: Non réalisé
A126: 120 | Q126: 0 | R126: =COUNTIFS($L$7:L126,"à éditer") -> 1 | S126: 1 | T126: 1900 | U126: Non réalisé
A127: 121 | Q127: 0 | R127: =COUNTIFS($L$7:L127,"à éditer") -> 1 | S127: 1 | T127: 1900 | U127: Non réalisé
A128: 122 | Q128: 0 | R128: =COUNTIFS($L$7:L128,"à éditer") -> 1 | S128: 1 | T128: 1900 | U128: Non réalisé
A129: 123 | Q129: 0 | R129: =COUNTIFS($L$7:L129,"à éditer") -> 1 | S129: 1 | T129: 1900 | U129: Non réalisé
A130: 124 | Q130: 0 | R130: =COUNTIFS($L$7:L130,"à éditer") -> 1 | S130: 1 | T130: 1900 | U130: Non réalisé
A131: 125 | Q131: 0 | R131: =COUNTIFS($L$7:L131,"à éditer") -> 1 | S131: 1 | T131: 1900 | U131: Non réalisé
A132: 126 | Q132: 0 | R132: =COUNTIFS($L$7:L132,"à éditer") -> 1 | S132: 1 | T132: 1900 | U132: Non réalisé
A133: 127 | Q133: 0 | R133: =COUNTIFS($L$7:L133,"à éditer") -> 1 | S133: 1 | T133: 1900 | U133: Non réalisé
A134: 128 | Q134: 0 | R134: =COUNTIFS($L$7:L134,"à éditer") -> 1 | S134: 1 | T134: 1900 | U134: Non réalisé
A135: 129 | Q135: 0 | R135: =COUNTIFS($L$7:L135,"à éditer") -> 1 | S135: 1 | T135: 1900 | U135: Non réalisé
A136: =A135+1 -> 130 | Q136: 0 | R136: =COUNTIFS($L$7:L136,"à éditer") -> 1 | S136: =IFERROR(MONTH(J136),"") -> 1 | T136: =YEAR(J136) -> 1900 | U136: =IF(OR(L136="définitif",L136="à éditer",L136="en cours de réalisation"),"Réalisé",IF(OR(L136="projet annulé",L136=""),"Non réalisé",IF(L136="en attente","En attente",""))) -> Non réalisé
A137: 131 | Q137: 0 | R137: =COUNTIFS($L$7:L137,"à éditer") -> 1 | S137: 1 | T137: 1900 | U137: Non réalisé
A138: 132 | Q138: 0 | R138: =COUNTIFS($L$7:L138,"à éditer") -> 1 | S138: 1 | T138: 1900 | U138: Non réalisé
A139: 133 | Q139: 0 | R139: =COUNTIFS($L$7:L139,"à éditer") -> 1 | S139: 1 | T139: 1900 | U139: Non réalisé
A140: 134 | Q140: 0 | R140: =COUNTIFS($L$7:L140,"à éditer") -> 1 | S140: 1 | T140: 1900 | U140: Non réalisé
A141: 135 | Q141: 0 | R141: =COUNTIFS($L$7:L141,"à éditer") -> 1 | S141: 1 | T141: 1900 | U141: Non réalisé
A142: 136 | Q142: 0 | R142: =COUNTIFS($L$7:L142,"à éditer") -> 1 | S142: 1 | T142: 1900 | U142: Non réalisé
A143: 137 | Q143: 0 | R143: =COUNTIFS($L$7:L143,"à éditer") -> 1 | S143: 1 | T143: 1900 | U143: Non réalisé
A144: 138 | Q144: 0 | R144: =COUNTIFS($L$7:L144,"à éditer") -> 1 | S144: 1 | T144: 1900 | U144: Non réalisé
A145: 139 | Q145: 0 | R145: =COUNTIFS($L$7:L145,"à éditer") -> 1 | S145: 1 | T145: 1900 | U145: Non réalisé
A146: 140 | Q146: 0 | R146: =COUNTIFS($L$7:L146,"à éditer") -> 1 | S146: 1 | T146: 1900 | U146: Non réalisé
A147: 141 | Q147: 0 | R147: =COUNTIFS($L$7:L147,"à éditer") -> 1 | S147: 1 | T147: 1900 | U147: Non réalisé
A148: 142 | O148: =IFERROR(INDIRECT("'"&$O$1&"'!C"&MATCH(B148,INDIRECT("'"&$O$1&"'!B:B"),0)),"") ->  | Q148: =COUNTIFS(L:L,"à éditer",B:B,B148) -> 0 | R148: =COUNTIFS($L$7:L148,"à éditer") -> 1 | S148: 1 | T148: 1900 | U148: Non réalisé
A149: 143 | Q149: 0 | R149: =COUNTIFS($L$7:L149,"à éditer") -> 1 | S149: 1 | T149: 1900 | U149: Non réalisé
A150: 144 | N150: =IF(L150="à éditer",IF(B150=B149,N149,$Q$5+IF(Q150=R150,Q150,R150)),"") ->  | Q150: 0 | R150: =COUNTIFS($L$7:L150,"à éditer") -> 1 | S150: 1 | T150: 1900 | U150: Non réalisé
A151: 145 | Q151: 0 | R151: =COUNTIFS($L$7:L151,"à éditer") -> 1 | S151: 1 | T151: 1900 | U151: Non réalisé
A152: 146 | Q152: 0 | R152: =COUNTIFS($L$7:L152,"à éditer") -> 1 | S152: 1 | T152: 1900 | U152: Non réalisé
A153: 147 | Q153: 0 | R153: =COUNTIFS($L$7:L153,"à éditer") -> 1 | S153: 1 | T153: 1900 | U153: Non réalisé
A154: 148 | Q154: 0 | R154: =COUNTIFS($L$7:L154,"à éditer") -> 1 | S154: 1 | T154: 1900 | U154: Non réalisé
A155: 149 | Q155: 0 | R155: =COUNTIFS($L$7:L155,"à éditer") -> 1 | S155: 1 | T155: 1900 | U155: Non réalisé
A156: 150 | Q156: 0 | R156: =COUNTIFS($L$7:L156,"à éditer") -> 1 | S156: 1 | T156: 1900 | U156: Non réalisé
A157: 151 | Q157: 0 | R157: =COUNTIFS($L$7:L157,"à éditer") -> 1 | S157: 1 | T157: 1900 | U157: Non réalisé
A158: 152 | Q158: 0 | R158: =COUNTIFS($L$7:L158,"à éditer") -> 1 | S158: 1 | T158: 1900 | U158: Non réalisé
A159: 153 | Q159: 0 | R159: =COUNTIFS($L$7:L159,"à éditer") -> 1 | S159: 1 | T159: 1900 | U159: Non réalisé
A160: 154 | Q160: 0 | R160: =COUNTIFS($L$7:L160,"à éditer") -> 1 | S160: 1 | T160: 1900 | U160: Non réalisé
A161: 155 | Q161: 0 | R161: =COUNTIFS($L$7:L161,"à éditer") -> 1 | S161: 1 | T161: 1900 | U161: Non réalisé
A162: 156 | Q162: 0 | R162: =COUNTIFS($L$7:L162,"à éditer") -> 1 | S162: 1 | T162: 1900 | U162: Non réalisé
A163: 157 | Q163: 0 | R163: =COUNTIFS($L$7:L163,"à éditer") -> 1 | S163: 1 | T163: 1900 | U163: Non réalisé
A164: 158 | Q164: 0 | R164: =COUNTIFS($L$7:L164,"à éditer") -> 1 | S164: 1 | T164: 1900 | U164: Non réalisé
A165: 159 | Q165: 0 | R165: =COUNTIFS($L$7:L165,"à éditer") -> 1 | S165: 1 | T165: 1900 | U165: Non réalisé
A166: 160 | Q166: 0 | R166: =COUNTIFS($L$7:L166,"à éditer") -> 1 | S166: 1 | T166: 1900 | U166: Non réalisé
A167: 161 | Q167: 0 | R167: =COUNTIFS($L$7:L167,"à éditer") -> 1 | S167: 1 | T167: 1900 | U167: Non réalisé
A168: 162 | Q168: 0 | R168: =COUNTIFS($L$7:L168,"à éditer") -> 1 | S168: 1 | T168: 1900 | U168: Non réalisé
A169: 163 | Q169: 0 | R169: =COUNTIFS($L$7:L169,"à éditer") -> 1 | S169: 1 | T169: 1900 | U169: Non réalisé
A170: 164 | Q170: 0 | R170: =COUNTIFS($L$7:L170,"à éditer") -> 1 | S170: 1 | T170: 1900 | U170: Non réalisé
A171: 165 | Q171: 0 | R171: =COUNTIFS($L$7:L171,"à éditer") -> 1 | S171: 1 | T171: 1900 | U171: Non réalisé
A172: 166 | Q172: 0 | R172: =COUNTIFS($L$7:L172,"à éditer") -> 1 | S172: 1 | T172: 1900 | U172: Non réalisé
A173: 167 | Q173: 0 | R173: =COUNTIFS($L$7:L173,"à éditer") -> 1 | S173: 1 | T173: 1900 | U173: Non réalisé
A174: 168 | Q174: 0 | R174: =COUNTIFS($L$7:L174,"à éditer") -> 1 | S174: 1 | T174: 1900 | U174: Non réalisé
A175: 169 | Q175: 0 | R175: =COUNTIFS($L$7:L175,"à éditer") -> 1 | S175: 1 | T175: 1900 | U175: Non réalisé
A176: 170 | Q176: 0 | R176: =COUNTIFS($L$7:L176,"à éditer") -> 1 | S176: 1 | T176: 1900 | U176: Non réalisé
A177: 171 | Q177: 0 | R177: =COUNTIFS($L$7:L177,"à éditer") -> 1 | S177: 1 | T177: 1900 | U177: Non réalisé
A178: 172 | Q178: 0 | R178: =COUNTIFS($L$7:L178,"à éditer") -> 1 | S178: 1 | T178: 1900 | U178: Non réalisé
A179: 173 | Q179: 0 | R179: =COUNTIFS($L$7:L179,"à éditer") -> 1 | S179: 1 | T179: 1900 | U179: Non réalisé
A180: 174 | Q180: 0 | R180: =COUNTIFS($L$7:L180,"à éditer") -> 1 | S180: 1 | T180: 1900 | U180: Non réalisé
A181: 175 | Q181: 0 | R181: =COUNTIFS($L$7:L181,"à éditer") -> 1 | S181: 1 | T181: 1900 | U181: Non réalisé
A182: 176 | Q182: 0 | R182: =COUNTIFS($L$7:L182,"à éditer") -> 1 | S182: 1 | T182: 1900 | U182: Non réalisé
A183: 177 | Q183: 0 | R183: =COUNTIFS($L$7:L183,"à éditer") -> 1 | S183: 1 | T183: 1900 | U183: Non réalisé
A184: 178 | Q184: 0 | R184: =COUNTIFS($L$7:L184,"à éditer") -> 1 | S184: 1 | T184: 1900 | U184: Non réalisé
A185: 179 | Q185: 0 | R185: =COUNTIFS($L$7:L185,"à éditer") -> 1 | S185: 1 | T185: 1900 | U185: Non réalisé
A186: 180 | Q186: 0 | R186: =COUNTIFS($L$7:L186,"à éditer") -> 1 | S186: 1 | T186: 1900 | U186: Non réalisé
A187: 181 | Q187: 0 | R187: =COUNTIFS($L$7:L187,"à éditer") -> 1 | S187: 1 | T187: 1900 | U187: Non réalisé
A188: 182 | Q188: 0 | R188: =COUNTIFS($L$7:L188,"à éditer") -> 1 | S188: 1 | T188: 1900 | U188: Non réalisé
A189: 183 | Q189: 0 | R189: =COUNTIFS($L$7:L189,"à éditer") -> 1 | S189: 1 | T189: 1900 | U189: Non réalisé
A190: 184 | Q190: 0 | R190: =COUNTIFS($L$7:L190,"à éditer") -> 1 | S190: 1 | T190: 1900 | U190: Non réalisé
A191: 185 | Q191: 0 | R191: =COUNTIFS($L$7:L191,"à éditer") -> 1 | S191: 1 | T191: 1900 | U191: Non réalisé
A192: 186 | Q192: 0 | R192: =COUNTIFS($L$7:L192,"à éditer") -> 1 | S192: 1 | T192: 1900 | U192: Non réalisé
A193: 187 | Q193: 0 | R193: =COUNTIFS($L$7:L193,"à éditer") -> 1 | S193: 1 | T193: 1900 | U193: Non réalisé
A194: 188 | Q194: 0 | R194: =COUNTIFS($L$7:L194,"à éditer") -> 1 | S194: 1 | T194: 1900 | U194: Non réalisé
A195: 189 | Q195: 0 | R195: =COUNTIFS($L$7:L195,"à éditer") -> 1 | S195: 1 | T195: 1900 | U195: Non réalisé
A196: 190 | Q196: 0 | R196: =COUNTIFS($L$7:L196,"à éditer") -> 1 | S196: 1 | T196: 1900 | U196: Non réalisé
A197: 191 | Q197: 0 | R197: =COUNTIFS($L$7:L197,"à éditer") -> 1 | S197: 1 | T197: 1900 | U197: Non réalisé
A198: 192 | Q198: 0 | R198: =COUNTIFS($L$7:L198,"à éditer") -> 1 | S198: 1 | T198: 1900 | U198: Non réalisé
A199: 193 | Q199: 0 | R199: =COUNTIFS($L$7:L199,"à éditer") -> 1 | S199: 1 | T199: 1900 | U199: Non réalisé
A200: =A199+1 -> 194 | Q200: 0 | R200: =COUNTIFS($L$7:L200,"à éditer") -> 1 | S200: =IFERROR(MONTH(J200),"") -> 1 | T200: =YEAR(J200) -> 1900 | U200: =IF(OR(L200="définitif",L200="à éditer",L200="en cours de réalisation"),"Réalisé",IF(OR(L200="projet annulé",L200=""),"Non réalisé",IF(L200="en attente","En attente",""))) -> Non réalisé
A201: 195 | Q201: 0 | R201: =COUNTIFS($L$7:L201,"à éditer") -> 1 | S201: 1 | T201: 1900 | U201: Non réalisé
... 405 more rows

Sheet Devis
H4: Base prestations | I4: Prestation ?
C5: Ce devis se met à jour en fonction de la saisie de la colonne B de l'onglet Base Prestation | G5: sélection du code client | H5: C0001 | I5: 1
C6: Onglet automatique, ne pas modifier | H6: =IF(I6="Tous",MATCH(H5,INDIRECT("'"&H4&"'!B:B"),0),IF(I6>MATCH(H5,INDIRECT("'"&H4&"'!B:B"),0),I6,MATCH(H5,INDIRECT("'"&H4&"'!B:B"),0))) -> 7 | I6: =IF(I5="*","tous",MATCH(I5,INDIRECT("'"&H4&"'!I:I"),0)) -> 7
D7: https://d.docs.live.net/521f8be27da355e0/Documents/T-WOOD | H7: Base clients
H8: =IFERROR(INDIRECT("'"&$H$7&"'!C"&MATCH(H5,INDIRECT("'"&$H$7&"'!B:B"),0)),"") -> Pro
C9: Nom client | D9: =IFERROR(IF($H$8="PRO","Société "&INDIRECT("'"&$H$7&"'!D"&MATCH(H5,INDIRECT("'"&$H$7&"'!B:B"),0)),""),"")&" "&IFERROR(IF(H8="PRO","A l'attention de "&INDIRECT("'"&$H$7&"'!f"&MATCH(H5,INDIRECT("'"&$H$7&"'!B:B"),0))&" "&INDIRECT("'"&$H$7&"'!E"&MATCH(H5,INDIRECT("'"&$H$7&"'!B:B"),0)),INDIRECT("'"&$H$7&"'!h"&MATCH(H5,INDIRECT("'"&$H$7&"'!B:B"),0))&" "&INDIRECT("'"&$H$7&"'!g"&MATCH(H5,INDIRECT("'"&$H$7&"'!B:B"),0))),"") -> Société société x A l'attention de Thomas Le Blanc
D10: Acompte demandé : | E10: =INDIRECT("'"&$H$4&"'!e"&C29) -> OUI
F13: =IF(I5="*","Récapitulatif de tous les devis","DEVIS "&YEAR(NOW())&"_"&IF(MONTH(NOW())<10,"0"&MONTH(NOW()),MONTH(NOW()))&"_"&IF(DAY(NOW())<10,"0"&DAY(NOW()),DAY(NOW())))&"_"&IF(HOUR(NOW())<10,"0"&HOUR(NOW()),HOUR(NOW()))&"h"&IF(MINUTE(NOW())<10,"0"&MINUTE(NOW()),MINUTE(NOW()))&"_"&IF(SECOND(NOW())<10,"0"&SECOND(NOW()),SECOND(NOW())) -> DEVIS 2020_08_11_16h10_40
G14: Date : | H14: =INDIRECT("'"&H4&"'!J"&H6) -> 2020-05-01
C17: =IF(ISBLANK('Nos données'!C7),"",'Nos données'!C7) -> 
C18: =IF(ISBLANK('Nos données'!C8),"",'Nos données'!C8) ->  | G18: =IFERROR(IF($H$8="PRO","Société "&INDIRECT("'"&$H$7&"'!D"&MATCH(H5,INDIRECT("'"&$H$7&"'!B:B"),0)),""),"") -> Société société x
C19: =IF(ISBLANK('Nos données'!C9),"",'Nos données'!C9) ->  | G19: =IFERROR(IF(H8="PRO","A l'attention de "&INDIRECT("'"&$H$7&"'!f"&MATCH(H5,INDIRECT("'"&$H$7&"'!B:B"),0))&" "&INDIRECT("'"&$H$7&"'!E"&MATCH(H5,INDIRECT("'"&$H$7&"'!B:B"),0)),INDIRECT("'"&$H$7&"'!h"&MATCH(H5,INDIRECT("'"&$H$7&"'!B:B"),0))&" "&INDIRECT("'"&$H$7&"'!g"&MATCH(H5,INDIRECT("'"&$H$7&"'!B:B"),0))),"") -> A l'attention de Thomas Le Blanc
C20: =IF(ISBLANK('Nos données'!C10),"",'Nos données'!C10)&" "&IF(ISBLANK('Nos données'!C11),"",'Nos données'!C11) ->  | G20: =IFERROR(INDIRECT("'"&$H$7&"'!i"&MATCH(H5,INDIRECT("'"&$H$7&"'!B:B"),0)),"") -> 343 rue de Neuilly
C21: ="Téléphone : "&IF(ISBLANK('Nos données'!C12),"",'Nos données'!C12) -> Téléphone : | G21: =IFERROR(INDIRECT("'"&$H$7&"'!j"&MATCH(H5,INDIRECT("'"&$H$7&"'!B:B"),0))&" "&INDIRECT("'"&$H$7&"'!k"&MATCH(H5,INDIRECT("'"&$H$7&"'!B:B"),0)),"") -> 75016 Paris
C22: ="Siret : "&IF(ISBLANK('Nos données'!C13),"",'Nos données'!C13) -> Siret :
C23: =IF(ISBLANK('Nos données'!C14),"","N° TVA : "&'Nos données'!C14) -> 
C24: Police d'assurance : 302988832000
C27: Description | E27: =IF(SUM(E29:E61)>0,"Remise","") -> Remise | G27: Montant HT | H27: Montant TTC | I27: Taux TVA | M27: Numéro de prestation
A29: 5 | C29: =H6 -> 7 | D29: =IF(C29<>"","#"&IF(C29<>"",INDIRECT("'"&$H$4&"'!I"&C29),"")&" - "&INDIRECT("'"&$H$4&"'!C"&C29),"") -> #1 - prestation 1 | E29: =IFERROR(IF(IF(C29<>"",INDIRECT("'"&$H$4&"'!G"&C29),"")=0,"",IF(C29<>"",INDIRECT("'"&$H$4&"'!G"&C29),"")),"") ->  | G29: =IF(C29<>"",INDIRECT("'"&$H$4&"'!D"&C29),"") -> 300 | H29: =IFERROR(G29*I29+G29,"") -> 360 | I29: =IF(C29<>"",INDIRECT("'"&$H$4&"'!F"&C29),"") -> 0.2 | M29: =IF(C29<>"",INDIRECT("'"&$H$4&"'!I"&C29),"") -> 1
C30: =IF(AND(INDIRECT("'"&H$4&"'!B"&H$6+L30)=H$5,C29<>""),H$6+L30,"") -> 8 | D30: =IF(C30<>"","#"&IF(C30<>"",INDIRECT("'"&$H$4&"'!I"&C30),"")&" - "&INDIRECT("'"&$H$4&"'!C"&C30),"") -> #1 - Prestation 2 | E30: 0.05 | G30: 400 | H30: =IFERROR(G30*I30+G30,"") -> 440 | I30: 0.1 | L30: 1 | M30: =IF(C30<>"",INDIRECT("'"&$H$4&"'!I"&C30),"") -> 1 | N30: =M29=M30 -> TRUE
C31: =IF(AND(INDIRECT("'"&H$4&"'!B"&H$6+L31)=H$5,C30<>""),H$6+L31,"") ->  | D31: =IF(C31<>"","#"&IF(C31<>"",INDIRECT("'"&$H$4&"'!I"&C31),"")&" - "&INDIRECT("'"&$H$4&"'!C"&C31),"") ->  | L31: =L30+1 -> 2 | M31: =IF(C31<>"",INDIRECT("'"&$H$4&"'!I"&C31),"") -> 
L32: =L31+1 -> 3
L33: 4
L34: 5
L35: 6
G36: =IF(C36<>"",INDIRECT("'"&$H$4&"'!D"&C36),"") ->  | L36: 7
L37: 8
L38: 9
L39: 10
L40: 11
L41: 12
L42: 13
L43: 14
L44: 15
L45: 16
L46: 17
L47: 18
L48: 19
L49: 20
L50: 21
L51: 22
L52: 23
L53: 24
L54: 25
L55: 26
L56: 27
L57: 28
L58: 29
L59: 30
C60: =IF(AND(INDIRECT("'"&H$4&"'!B"&H$6+L60)=H$5,C58<>""),H$6+L60,"") ->  | D60: =IF(C60<>"","#"&IF(C60<>"",INDIRECT("'"&$H$4&"'!I"&C60),"")&" - "&INDIRECT("'"&$H$4&"'!C"&C60),"") ->  | E60: =IFERROR(IF(IF(C60<>"",INDIRECT("'"&$H$4&"'!G"&C60),"")=0,"",IF(C60<>"",INDIRECT("'"&$H$4&"'!G"&C60),"")),"") ->  | G60: =IF(C60<>"",INDIRECT("'"&$H$4&"'!D"&C60),"") ->  | H60: =IFERROR(G60*I60+G60,"") ->  | I60: =IF(C60<>"",INDIRECT("'"&$H$4&"'!F"&C60),"") ->  | L60: =L58+1 -> 30 | M60: =IF(C60<>"",INDIRECT("'"&$H$4&"'!I"&C60),"") -> 
C61: =IF(AND(INDIRECT("'"&H$4&"'!B"&H$6+L61)=H$5,C59<>""),H$6+L61,"") ->  | L61: =L59+1 -> 31
D62: =IF(G62="","","Remise accordée") -> Remise accordée | G62: =IF(+IFERROR(-$E29*G29,0)+IFERROR(-$E30*G30,0)+IFERROR(-$E31*G31,0)+IFERROR(-$E32*G32,0)+IFERROR(-$E33*G33,0)+IFERROR(-$E34*G34,0)+IFERROR(-$E35*G35,0)+IFERROR(-$E36*G36,0)+IFERROR(-$E37*G37,0)+IFERROR(-$E38*G38,0)+IFERROR(-$E39*G39,0)+IFERROR(-$E40*G40,0)+IFERROR(-$E41*G41,0)+IFERROR(-$E42*G42,0)+IFERROR(-$E43*G43,0)+IFERROR(-$E44*G44,0)+IFERROR(-$E45*G45,0)+IFERROR(-$E46*G46,0)+IFERROR(-$E47*G47,0)+IFERROR(-$E48*G48,0)+IFERROR(-$E49*G49,0)+IFERROR(-$E50*G50,0)+IFERROR(-$E51*G51,0)+IFERROR(-$E52*G52,0)+IFERROR(-$E53*G53,0)+IFERROR(-$E54*G54,0)+IFERROR(-$E55*G55,0)+IFERROR(-$E56*G56,0)+IFERROR(-$E57*G57,0)+IFERROR(-$E58*G58,0)+IFERROR(-$E59*G59,0)+IFERROR(-$E60*G60,0)=0,"",+IFERROR(-$E29*G29,0)+IFERROR(-$E30*G30,0)+IFERROR(-$E31*G31,0)+IFERROR(-$E32*G32,0)+IFERROR(-$E33*G33,0)+IFERROR(-$E34*G34,0)+IFERROR(-$E35*G35,0)+IFERROR(-$E36*G36,0)+IFERROR(-$E37*G37,0)+IFERROR(-$E38*G38,0)+IFERROR(-$E39*G39,0)+IFERROR(-$E40*G40,0)+IFERROR(-$E41*G41,0)+IFERROR(-$E42*G42,0)+IFERROR(-$E43*G43,0)+IFERROR(-$E44*G44,0)+IFERROR(-$E45*G45,0)+IFERROR(-$E46*G46,0)+IFERROR(-$E47*G47,0)+IFERROR(-$E48*G48,0)+IFERROR(-$E49*G49,0)+IFERROR(-$E50*G50,0)+IFERROR(-$E51*G51,0)+IFERROR(-$E52*G52,0)+IFERROR(-$E53*G53,0)+IFERROR(-$E54*G54,0)+IFERROR(-$E55*G55,0)+IFERROR(-$E56*G56,0)+IFERROR(-$E57*G57,0)+IFERROR(-$E58*G58,0)+IFERROR(-$E59*G59,0)+IFERROR(-$E60*G60,0)) -> -20 | H62: =IF(+IFERROR(-$E29*H29,0)+IFERROR(-$E30*H30,0)+IFERROR(-$E31*H31,0)+IFERROR(-$E32*H32,0)+IFERROR(-$E33*H33,0)+IFERROR(-$E34*H34,0)+IFERROR(-$E35*H35,0)+IFERROR(-$E36*H36,0)+IFERROR(-$E37*H37,0)+IFERROR(-$E38*H38,0)+IFERROR(-$E39*H39,0)+IFERROR(-$E40*H40,0)+IFERROR(-$E41*H41,0)+IFERROR(-$E42*H42,0)+IFERROR(-$E43*H43,0)+IFERROR(-$E44*H44,0)+IFERROR(-$E45*H45,0)+IFERROR(-$E46*H46,0)+IFERROR(-$E47*H47,0)+IFERROR(-$E48*H48,0)+IFERROR(-$E49*H49,0)+IFERROR(-$E50*H50,0)+IFERROR(-$E51*H51,0)+IFERROR(-$E52*H52,0)+IFERROR(-$E53*H53,0)+IFERROR(-$E54*H54,0)+IFERROR(-$E55*H55,0)+IFERROR(-$E56*H56,0)+IFERROR(-$E57*H57,0)+IFERROR(-$E58*H58,0)+IFERROR(-$E59*H59,0)+IFERROR(-$E60*H60,0)=0,"",+IFERROR(-$E29*H29,0)+IFERROR(-$E30*H30,0)+IFERROR(-$E31*H31,0)+IFERROR(-$E32*H32,0)+IFERROR(-$E33*H33,0)+IFERROR(-$E34*H34,0)+IFERROR(-$E35*H35,0)+IFERROR(-$E36*H36,0)+IFERROR(-$E37*H37,0)+IFERROR(-$E38*H38,0)+IFERROR(-$E39*H39,0)+IFERROR(-$E40*H40,0)+IFERROR(-$E41*H41,0)+IFERROR(-$E42*H42,0)+IFERROR(-$E43*H43,0)+IFERROR(-$E44*H44,0)+IFERROR(-$E45*H45,0)+IFERROR(-$E46*H46,0)+IFERROR(-$E47*H47,0)+IFERROR(-$E48*H48,0)+IFERROR(-$E49*H49,0)+IFERROR(-$E50*H50,0)+IFERROR(-$E51*H51,0)+IFERROR(-$E52*H52,0)+IFERROR(-$E53*H53,0)+IFERROR(-$E54*H54,0)+IFERROR(-$E55*H55,0)+IFERROR(-$E56*H56,0)+IFERROR(-$E57*H57,0)+IFERROR(-$E58*H58,0)+IFERROR(-$E59*H59,0)+IFERROR(-$E60*H60,0)) -> -22
C66: Relevé d'Identité Bancaire | G66: Montant HT | H66: TVA | I66: Montant TTC
C67: Banque Guichet Numéro de compte Clé | F67: Total I | G67: =SUM(G29:G59) -> 700 | H67: =I67-G67 -> 100 | I67: =SUM(H29:H59) -> 800
C68: 00000 00000 00000000000 00 | F68: =IF(G62="","","dont remises") -> dont remises | G68: =IF(G62="","",G62) -> -20 | H68: =IF(F68="","",I68-G68) -> -2 | I68: =IF(H62="","",H62) -> -22
C69: Bank | F69: =IF(G62="","","Total II") -> Total II | G69: =IF($F69="","",G67+G68) -> 680 | H69: =IF($F69="","",H67+H68) -> 98 | I69: 778
C70: IBAN : FR00 0000 0000 0000 0000 0000 000 | F70: =IF(E10="OUI","dont acompte:","") -> dont acompte: | G70: =IF($E$10="oui",-G67*0.3,"") -> -210 | H70: =IF($E$10="oui",-H67*0.3,"") -> -30 | I70: -240
C71: BIC : CCCCCCCCCCCC | F71: =IF(AND(F69="",F70<>""),"Total II",IF(F70="","","Total III")) -> Total III | G71: =IFERROR(IF(G69="",G67+G70,IF(G70="","",G69+G70)),"") -> 470 | H71: =IFERROR(IF(H69="",H67+H70,IF(H70="","",H69+H70)),"") -> 68 | I71: 538
C73: Règlement : | D73: =IF(C29<>"",INDIRECT("'"&$H$4&"'!H"&C29),"") -> virement
C75: ="Merci de nous retourner ce devis signé avec la mention "&"""bon pour accord"""&" "&IF(E10="OUI",CONCATENATE("ainsi que le versement des 30% d'acompte soit ",TEXT(ROUND(I67*30%,2),"#### 000")," EUR."),"compte tenu de nos relations, aucun acompte n'est demandé.") -> Merci de nous retourner ce devis signé avec la mention "bon pour accord" ainsi que le versement des 30% d'acompte soit 240 EUR.
C77: ="Fait à ______________________________________________ le "&IF(DAY(NOW())<10,"0"&DAY(NOW()),DAY(NOW()))&"/"&IF(MONTH(NOW())<10,"0"&MONTH(NOW()),MONTH(NOW()))&"/"&YEAR(NOW()) -> Fait à ______________________________________________ le 11/08/2020
C78: Signature: | I78: Page 1 sur 1

Sheet Facture
H4: Base prestations | I4: Prestation ?
C5: Ce devis se met à jour en fonction de la saisie de la colonne B de l'onglet Base Prestation | G5: sélection du code client | H5: C0001 | I5: 1
C6: Onglet automatique, ne pas modifier | G6: Ligne en cours de base prestation | H6: =IF(I6>MATCH(H5,INDIRECT("'"&H4&"'!B:B"),0),I6,MATCH(H5,INDIRECT("'"&H4&"'!B:B"),0)) -> 7 | I6: =MATCH(I5,INDIRECT("'"&H4&"'!I:I"),0) -> 7
D7: C:\Users\xavie\OneDrive\Documents\T-WOOD | H7: Base clients
H8: =IFERROR(INDIRECT("'"&$H$7&"'!C"&MATCH(H5,INDIRECT("'"&$H$7&"'!B:B"),0)),"") -> Pro
C9: Nom client | D9: =UPPER(IFERROR(IF($H$8="PRO","Société "&INDIRECT("'"&$H$7&"'!D"&MATCH(H5,INDIRECT("'"&$H$7&"'!B:B"),0)),""),"")&" "&IFERROR(IF(H8="PRO","A l'attention de "&INDIRECT("'"&$H$7&"'!f"&MATCH(H5,INDIRECT("'"&$H$7&"'!B:B"),0))&" "&INDIRECT("'"&$H$7&"'!E"&MATCH(H5,INDIRECT("'"&$H$7&"'!B:B"),0)),INDIRECT("'"&$H$7&"'!h"&MATCH(H5,INDIRECT("'"&$H$7&"'!B:B"),0))&" "&INDIRECT("'"&$H$7&"'!g"&MATCH(H5,INDIRECT("'"&$H$7&"'!B:B"),0))),"")) -> SOCIÉTÉ SOCIÉTÉ X A L'ATTENTION DE THOMAS LE BLANC
D10: Acompte reçu ? | E10: =INDIRECT("'"&H4&"'!E"&H6) -> OUI
F13: Facture n° | H13: =INDIRECT("'"&H4&"'!N"&H6) -> 22001
G14: Date : | H14: =INDIRECT("'"&H4&"'!K"&H6) -> 00:00:00
C17: =IF(ISBLANK('Nos données'!C7),"",'Nos données'!C7) -> 
C18: =IF(ISBLANK('Nos données'!C8),"",'Nos données'!C8) ->  | G18: =IFERROR(IF($H$8="PRO","Société "&INDIRECT("'"&$H$7&"'!D"&MATCH(H5,INDIRECT("'"&$H$7&"'!B:B"),0)),""),"") -> Société société x
C19: =IF(ISBLANK('Nos données'!C9),"",'Nos données'!C9) ->  | G19: =IFERROR(IF(H8="PRO","A l'attention de "&INDIRECT("'"&$H$7&"'!f"&MATCH(H5,INDIRECT("'"&$H$7&"'!B:B"),0))&" "&INDIRECT("'"&$H$7&"'!E"&MATCH(H5,INDIRECT("'"&$H$7&"'!B:B"),0)),INDIRECT("'"&$H$7&"'!h"&MATCH(H5,INDIRECT("'"&$H$7&"'!B:B"),0))&" "&INDIRECT("'"&$H$7&"'!g"&MATCH(H5,INDIRECT("'"&$H$7&"'!B:B"),0))),"") -> A l'attention de Thomas Le Blanc
C20: =IF(ISBLANK('Nos données'!C10),"",'Nos données'!C10)&" "&IF(ISBLANK('Nos données'!C11),"",'Nos données'!C11) ->  | G20: =IFERROR(INDIRECT("'"&$H$7&"'!i"&MATCH(H5,INDIRECT("'"&$H$7&"'!B:B"),0)),"") -> 343 rue de Neuilly
C21: ="Téléphone : "&IF(ISBLANK('Nos données'!C12),"",'Nos données'!C12) -> Téléphone : | G21: =IFERROR(INDIRECT("'"&$H$7&"'!j"&MATCH(H5,INDIRECT("'"&$H$7&"'!B:B"),0))&" "&INDIRECT("'"&$H$7&"'!k"&MATCH(H5,INDIRECT("'"&$H$7&"'!B:B"),0)),"") -> 75016 Paris
C22: ="Siret : "&IF(ISBLANK('Nos données'!C13),"",'Nos données'!C13) -> Siret :
C23: =IF(ISBLANK('Nos données'!C14),"","N° TVA : "&'Nos données'!C14) -> 
C24: Police d'assurance : 302988832000
C27: Description | E27: =IF(SUM(E29:E60)>0,"Remise","") -> Remise | G27: Montant HT | H27: Montant TTC | I27: Taux TVA
A29: 5 | C29: =H6 -> 7 | D29: =IF(C29<>"",INDIRECT("'"&$H$4&"'!C"&C29),"") -> prestation 1 | E29: =IFERROR(IF(IF(C29<>"",INDIRECT("'"&$H$4&"'!G"&C29),"")=0,"",IF(C29<>"",INDIRECT("'"&$H$4&"'!G"&C29),"")),"") ->  | G29: =IF(C29<>"",INDIRECT("'"&$H$4&"'!D"&C29),"") -> 300 | H29: =IFERROR(G29*I29+G29,"") -> 360 | I29: =IF(C29<>"",INDIRECT("'"&$H$4&"'!F"&C29),"") -> 0.2
C30: =IF(AND(INDIRECT("'"&H$4&"'!B"&H$6+L30)=H$5,C29<>""),H$6+L30,"") -> 8 | D30: =IF(C30<>"",INDIRECT("'"&$H$4&"'!C"&C30),"") -> Prestation 2 | E30: =IFERROR(IF(IF(C30<>"",INDIRECT("'"&$H$4&"'!G"&C30),"")=0,"",IF(C30<>"",INDIRECT("'"&$H$4&"'!G"&C30),"")),"") -> 0.05 | G30: =IF(C30<>"",INDIRECT("'"&$H$4&"'!D"&C30),"") -> 400 | H30: =IFERROR(G30*I30+G30,"") -> 440 | I30: =IF(C30<>"",INDIRECT("'"&$H$4&"'!F"&C30),"") -> 0.1 | L30: 1
L31: =L30+1 -> 2
L32: =L31+1 -> 3
L33: 4
L34: 5
L35: 6
L36: 7
L37: 8
L38: 9
L39: 10
L40: 11
L41: 12
L42: 13
L43: 14
L44: 15
L45: 16
L46: 17
L47: 18
L48: 19
L49: 20
L50: 21
L51: 22
L52: 23
L53: 24
L54: 25
L55: 26
L56: 27
L57: 28
L58: 29
L59: 30
G60: =IF(C60<>"",INEIRECT("'"&$H$4&"'!E"&C60),"") ->  | L60: 31
D61: =IF(E10="OUI","Acomptes déjà perçus","") -> Acomptes déjà perçus | E61: =IF(D61="Acomptes déjà perçus",30%,"") -> 0.3 | G61: =IF(+IFERROR(IF(E60<>"",(G60*E60*$E$61)-(G60*$E$61),-(G60*$E$61)),0)+IFERROR(IF(E59<>"",(G59*E59*$E$61)-(G59*$E$61),-(G59*$E$61)),0)+IFERROR(IF(E58<>"",(G58*E58*$E$61)-(G58*$E$61),-(G58*$E$61)),0)+IFERROR(IF(E57<>"",(G57*E57*$E$61)-(G57*$E$61),-(G57*$E$61)),0)+IFERROR(IF(E56<>"",(G56*E56*$E$61)-(G56*$E$61),-(G56*$E$61)),0)+IFERROR(IF(E55<>"",(G55*E55*$E$61)-(G55*$E$61),-(G55*$E$61)),0)+IFERROR(IF(E54<>"",(G54*E54*$E$61)-(G54*$E$61),-(G54*$E$61)),0)+IFERROR(IF(E53<>"",(G53*E53*$E$61)-(G53*$E$61),-(G53*$E$61)),0)+IFERROR(IF(E52<>"",(G52*E52*$E$61)-(G52*$E$61),-(G52*$E$61)),0)+IFERROR(IF(E51<>"",(G51*E51*$E$61)-(G51*$E$61),-(G51*$E$61)),0)+IFERROR(IF(E50<>"",(G50*E50*$E$61)-(G50*$E$61),-(G50*$E$61)),0)+IFERROR(IF(E49<>"",(G49*E49*$E$61)-(G49*$E$61),-(G49*$E$61)),0)+IFERROR(IF(E48<>"",(G48*E48*$E$61)-(G48*$E$61),-(G48*$E$61)),0)+IFERROR(IF(E47<>"",(G47*E47*$E$61)-(G47*$E$61),-(G47*$E$61)),0)+IFERROR(IF(E46<>"",(G46*E46*$E$61)-(G46*$E$61),-(G46*$E$61)),0)+IFERROR(IF(E45<>"",(G45*E45*$E$61)-(G45*$E$61),-(G45*$E$61)),0)+IFERROR(IF(E44<>"",(G44*E44*$E$61)-(G44*$E$61),-(G44*$E$61)),0)+IFERROR(IF(E43<>"",(G43*E43*$E$61)-(G43*$E$61),-(G43*$E$61)),0)+IFERROR(IF(E42<>"",(G42*E42*$E$61)-(G42*$E$61),-(G42*$E$61)),0)+IFERROR(IF(E41<>"",(G41*E41*$E$61)-(G41*$E$61),-(G41*$E$61)),0)+IFERROR(IF(E40<>"",(G40*E40*$E$61)-(G40*$E$61),-(G40*$E$61)),0)+IFERROR(IF(E39<>"",(G39*E39*$E$61)-(G39*$E$61),-(G39*$E$61)),0)+IFERROR(IF(E38<>"",(G38*E38*$E$61)-(G38*$E$61),-(G38*$E$61)),0)+IFERROR(IF(E37<>"",(G37*E37*$E$61)-(G37*$E$61),-(G37*$E$61)),0)+IFERROR(IF(E36<>"",(G36*E36*$E$61)-(G36*$E$61),-(G36*$E$61)),0)+IFERROR(IF(E35<>"",(G35*E35*$E$61)-(G35*$E$61),-(G35*$E$61)),0)+IFERROR(IF(E34<>"",(G34*E34*$E$61)-(G34*$E$61),-(G34*$E$61)),0)+IFERROR(IF(E33<>"",(G33*E33*$E$61)-(G33*$E$61),-(G33*$E$61)),0)+IFERROR(IF(E32<>"",(G32*E32*$E$61)-(G32*$E$61),-(G32*$E$61)),0)+IFERROR(IF(E31<>"",(G31*E31*$E$61)-(G31*$E$61),-(G31*$E$61)),0)+IFERROR(IF(E30<>"",(G30*E30*$E$61)-(G30*$E$61),-(G30*$E$61)),0)+IFERROR(IF(E29<>"",(G29*E29*$E$61)-(G29*$E$61),-(G29*$E$61)),0)=0,"",+IFERROR(IF(E60<>"",(G60*E60*$E$61)-(G60*$E$61),-(G60*$E$61)),0)+IFERROR(IF(E59<>"",(G59*E59*$E$61)-(G59*$E$61),-(G59*$E$61)),0)+IFERROR(IF(E58<>"",(G58*E58*$E$61)-(G58*$E$61),-(G58*$E$61)),0)+IFERROR(IF(E57<>"",(G57*E57*$E$61)-(G57*$E$61),-(G57*$E$61)),0)+IFERROR(IF(E56<>"",(G56*E56*$E$61)-(G56*$E$61),-(G56*$E$61)),0)+IFERROR(IF(E55<>"",(G55*E55*$E$61)-(G55*$E$61),-(G55*$E$61)),0)+IFERROR(IF(E54<>"",(G54*E54*$E$61)-(G54*$E$61),-(G54*$E$61)),0)+IFERROR(IF(E53<>"",(G53*E53*$E$61)-(G53*$E$61),-(G53*$E$61)),0)+IFERROR(IF(E52<>"",(G52*E52*$E$61)-(G52*$E$61),-(G52*$E$61)),0)+IFERROR(IF(E51<>"",(G51*E51*$E$61)-(G51*$E$61),-(G51*$E$61)),0)+IFERROR(IF(E50<>"",(G50*E50*$E$61)-(G50*$E$61),-(G50*$E$61)),0)+IFERROR(IF(E49<>"",(G49*E49*$E$61)-(G49*$E$61),-(G49*$E$61)),0)+IFERROR(IF(E48<>"",(G48*E48*$E$61)-(G48*$E$61),-(G48*$E$61)),0)+IFERROR(IF(E47<>"",(G47*E47*$E$61)-(G47*$E$61),-(G47*$E$61)),0)+IFERROR(IF(E46<>"",(G46*E46*$E$61)-(G46*$E$61),-(G46*$E$61)),0)+IFERROR(IF(E45<>"",(G45*E45*$E$61)-(G45*$E$61),-(G45*$E$61)),0)+IFERROR(IF(E44<>"",(G44*E44*$E$61)-(G44*$E$61),-(G44*$E$61)),0)+IFERROR(IF(E43<>"",(G43*E43*$E$61)-(G43*$E$61),-(G43*$E$61)),0)+IFERROR(IF(E42<>"",(G42*E42*$E$61)-(G42*$E$61),-(G42*$E$61)),0)+IFERROR(IF(E41<>"",(G41*E41*$E$61)-(G41*$E$61),-(G41*$E$61)),0)+IFERROR(IF(E40<>"",(G40*E40*$E$61)-(G40*$E$61),-(G40*$E$61)),0)+IFERROR(IF(E39<>"",(G39*E39*$E$61)-(G39*$E$61),-(G39*$E$61)),0)+IFERROR(IF(E38<>"",(G38*E38*$E$61)-(G38*$E$61),-(G38*$E$61)),0)+IFERROR(IF(E37<>"",(G37*E37*$E$61)-(G37*$E$61),-(G37*$E$61)),0)+IFERROR(IF(E36<>"",(G36*E36*$E$61)-(G36*$E$61),-(G36*$E$61)),0)+IFERROR(IF(E35<>"",(G35*E35*$E$61)-(G35*$E$61),-(G35*$E$61)),0)+IFERROR(IF(E34<>"",(G34*E34*$E$61)-(G34*$E$61),-(G34*$E$61)),0)+IFERROR(IF(E33<>"",(G33*E33*$E$61)-(G33*$E$61),-(G33*$E$61)),0)+IFERROR(IF(E32<>"",(G32*E32*$E$61)-(G32*$E$61),-(G32*$E$61)),0)+IFERROR(IF(E31<>"",(G31*E31*$E$61)-(G31*$E$61),-(G31*$E$61)),0)+IFERROR(IF(E30<>"",(G30*E30*$E$61)-(G30*$E$61),-(G30*$E$61)),0)+IFERROR(IF(E29<>"",(G29*E29*$E$61)-(G29*$E$61),-(G29*$E$61)),0)) -> -204 | H61: =IF(IFERROR(IF(E60<>"",(H60*E60*$E$61)-(H60*$E$61),-(H60*$E$61)),0)+IFERROR(IF(E59<>"",(H59*E59*$E$61)-(H59*$E$61),-(H59*$E$61)),0)+IFERROR(IF(E58<>"",(H58*E58*$E$61)-(H58*$E$61),-(H58*$E$61)),0)+IFERROR(IF(E57<>"",(H57*E57*$E$61)-(H57*$E$61),-(H57*$E$61)),0)+IFERROR(IF(E56<>"",(H56*E56*$E$61)-(H56*$E$61),-(H56*$E$61)),0)+IFERROR(IF(E55<>"",(H55*E55*$E$61)-(H55*$E$61),-(H55*$E$61)),0)+IFERROR(IF(E54<>"",(H54*E54*$E$61)-(H54*$E$61),-(H54*$E$61)),0)+IFERROR(IF(E53<>"",(H53*E53*$E$61)-(H53*$E$61),-(H53*$E$61)),0)+IFERROR(IF(E52<>"",(H52*E52*$E$61)-(H52*$E$61),-(H52*$E$61)),0)+IFERROR(IF(E51<>"",(H51*E51*$E$61)-(H51*$E$61),-(H51*$E$61)),0)+IFERROR(IF(E50<>"",(H50*E50*$E$61)-(H50*$E$61),-(H50*$E$61)),0)+IFERROR(IF(E49<>"",(H49*E49*$E$61)-(H49*$E$61),-(H49*$E$61)),0)+IFERROR(IF(E48<>"",(H48*E48*$E$61)-(H48*$E$61),-(H48*$E$61)),0)+IFERROR(IF(E47<>"",(H47*E47*$E$61)-(H47*$E$61),-(H47*$E$61)),0)+IFERROR(IF(E46<>"",(H46*E46*$E$61)-(H46*$E$61),-(H46*$E$61)),0)+IFERROR(IF(E45<>"",(H45*E45*$E$61)-(H45*$E$61),-(H45*$E$61)),0)+IFERROR(IF(E44<>"",(H44*E44*$E$61)-(H44*$E$61),-(H44*$E$61)),0)+IFERROR(IF(E43<>"",(H43*E43*$E$61)-(H43*$E$61),-(H43*$E$61)),0)+IFERROR(IF(E42<>"",(H42*E42*$E$61)-(H42*$E$61),-(H42*$E$61)),0)+IFERROR(IF(E41<>"",(H41*E41*$E$61)-(H41*$E$61),-(H41*$E$61)),0)+IFERROR(IF(E40<>"",(H40*E40*$E$61)-(H40*$E$61),-(H40*$E$61)),0)+IFERROR(IF(E39<>"",(H39*E39*$E$61)-(H39*$E$61),-(H39*$E$61)),0)+IFERROR(IF(E38<>"",(H38*E38*$E$61)-(H38*$E$61),-(H38*$E$61)),0)+IFERROR(IF(E37<>"",(H37*E37*$E$61)-(H37*$E$61),-(H37*$E$61)),0)+IFERROR(IF(E36<>"",(H36*E36*$E$61)-(H36*$E$61),-(H36*$E$61)),0)+IFERROR(IF(E35<>"",(H35*E35*$E$61)-(H35*$E$61),-(H35*$E$61)),0)+IFERROR(IF(E34<>"",(H34*E34*$E$61)-(H34*$E$61),-(H34*$E$61)),0)+IFERROR(IF(E33<>"",(H33*E33*$E$61)-(H33*$E$61),-(H33*$E$61)),0)+IFERROR(IF(E32<>"",(H32*E32*$E$61)-(H32*$E$61),-(H32*$E$61)),0)+IFERROR(IF(E31<>"",(H31*E31*$E$61)-(H31*$E$61),-(H31*$E$61)),0)+IFERROR(IF(E30<>"",(H30*E30*$E$61)-(H30*$E$61),-(H30*$E$61)),0)+IFERROR(IF(E29<>"",(H29*E29*$E$61)-(H29*$E$61),-(H29*$E$61)),0)=0,"",IFERROR(IF(E60<>"",(H60*E60*$E$61)-(H60*$E$61),-(H60*$E$61)),0)+IFERROR(IF(E59<>"",(H59*E59*$E$61)-(H59*$E$61),-(H59*$E$61)),0)+IFERROR(IF(E58<>"",(H58*E58*$E$61)-(H58*$E$61),-(H58*$E$61)),0)+IFERROR(IF(E57<>"",(H57*E57*$E$61)-(H57*$E$61),-(H57*$E$61)),0)+IFERROR(IF(E56<>"",(H56*E56*$E$61)-(H56*$E$61),-(H56*$E$61)),0)+IFERROR(IF(E55<>"",(H55*E55*$E$61)-(H55*$E$61),-(H55*$E$61)),0)+IFERROR(IF(E54<>"",(H54*E54*$E$61)-(H54*$E$61),-(H54*$E$61)),0)+IFERROR(IF(E53<>"",(H53*E53*$E$61)-(H53*$E$61),-(H53*$E$61)),0)+IFERROR(IF(E52<>"",(H52*E52*$E$61)-(H52*$E$61),-(H52*$E$61)),0)+IFERROR(IF(E51<>"",(H51*E51*$E$61)-(H51*$E$61),-(H51*$E$61)),0)+IFERROR(IF(E50<>"",(H50*E50*$E$61)-(H50*$E$61),-(H50*$E$61)),0)+IFERROR(IF(E49<>"",(H49*E49*$E$61)-(H49*$E$61),-(H49*$E$61)),0)+IFERROR(IF(E48<>"",(H48*E48*$E$61)-(H48*$E$61),-(H48*$E$61)),0)+IFERROR(IF(E47<>"",(H47*E47*$E$61)-(H47*$E$61),-(H47*$E$61)),0)+IFERROR(IF(E46<>"",(H46*E46*$E$61)-(H46*$E$61),-(H46*$E$61)),0)+IFERROR(IF(E45<>"",(H45*E45*$E$61)-(H45*$E$61),-(H45*$E$61)),0)+IFERROR(IF(E44<>"",(H44*E44*$E$61)-(H44*$E$61),-(H44*$E$61)),0)+IFERROR(IF(E43<>"",(H43*E43*$E$61)-(H43*$E$61),-(H43*$E$61)),0)+IFERROR(IF(E42<>"",(H42*E42*$E$61)-(H42*$E$61),-(H42*$E$61)),0)+IFERROR(IF(E41<>"",(H41*E41*$E$61)-(H41*$E$61),-(H41*$E$61)),0)+IFERROR(IF(E40<>"",(H40*E40*$E$61)-(H40*$E$61),-(H40*$E$61)),0)+IFERROR(IF(E39<>"",(H39*E39*$E$61)-(H39*$E$61),-(H39*$E$61)),0)+IFERROR(IF(E38<>"",(H38*E38*$E$61)-(H38*$E$61),-(H38*$E$61)),0)+IFERROR(IF(E37<>"",(H37*E37*$E$61)-(H37*$E$61),-(H37*$E$61)),0)+IFERROR(IF(E36<>"",(H36*E36*$E$61)-(H36*$E$61),-(H36*$E$61)),0)+IFERROR(IF(E35<>"",(H35*E35*$E$61)-(H35*$E$61),-(H35*$E$61)),0)+IFERROR(IF(E34<>"",(H34*E34*$E$61)-(H34*$E$61),-(H34*$E$61)),0)+IFERROR(IF(E33<>"",(H33*E33*$E$61)-(H33*$E$61),-(H33*$E$61)),0)+IFERROR(IF(E32<>"",(H32*E32*$E$61)-(H32*$E$61),-(H32*$E$61)),0)+IFERROR(IF(E31<>"",(H31*E31*$E$61)-(H31*$E$61),-(H31*$E$61)),0)+IFERROR(IF(E30<>"",(H30*E30*$E$61)-(H30*$E$61),-(H30*$E$61)),0)+IFERROR(IF(E29<>"",(H29*E29*$E$61)-(H29*$E$61),-(H29*$E$61)),0)) -> -233.4
D62: =IF(G62="","","Remise accordée") -> Remise accordée | G62: =IF(+IFERROR(-$E29*G29,0)+IFERROR(-$E30*G30,0)+IFERROR(-$E31*G31,0)+IFERROR(-$E32*G32,0)+IFERROR(-$E33*G33,0)+IFERROR(-$E34*G34,0)+IFERROR(-$E35*G35,0)+IFERROR(-$E36*G36,0)+IFERROR(-$E37*G37,0)+IFERROR(-$E38*G38,0)+IFERROR(-$E39*G39,0)+IFERROR(-$E40*G40,0)+IFERROR(-$E41*G41,0)+IFERROR(-$E42*G42,0)+IFERROR(-$E43*G43,0)+IFERROR(-$E44*G44,0)+IFERROR(-$E45*G45,0)+IFERROR(-$E46*G46,0)+IFERROR(-$E47*G47,0)+IFERROR(-$E48*G48,0)+IFERROR(-$E49*G49,0)+IFERROR(-$E50*G50,0)+IFERROR(-$E51*G51,0)+IFERROR(-$E52*G52,0)+IFERROR(-$E53*G53,0)+IFERROR(-$E54*G54,0)+IFERROR(-$E55*G55,0)+IFERROR(-$E56*G56,0)+IFERROR(-$E57*G57,0)+IFERROR(-$E58*G58,0)+IFERROR(-$E59*G59,0)+IFERROR(-$E60*G60,0)=0,"",+IFERROR(-$E29*G29,0)+IFERROR(-$E30*G30,0)+IFERROR(-$E31*G31,0)+IFERROR(-$E32*G32,0)+IFERROR(-$E33*G33,0)+IFERROR(-$E34*G34,0)+IFERROR(-$E35*G35,0)+IFERROR(-$E36*G36,0)+IFERROR(-$E37*G37,0)+IFERROR(-$E38*G38,0)+IFERROR(-$E39*G39,0)+IFERROR(-$E40*G40,0)+IFERROR(-$E41*G41,0)+IFERROR(-$E42*G42,0)+IFERROR(-$E43*G43,0)+IFERROR(-$E44*G44,0)+IFERROR(-$E45*G45,0)+IFERROR(-$E46*G46,0)+IFERROR(-$E47*G47,0)+IFERROR(-$E48*G48,0)+IFERROR(-$E49*G49,0)+IFERROR(-$E50*G50,0)+IFERROR(-$E51*G51,0)+IFERROR(-$E52*G52,0)+IFERROR(-$E53*G53,0)+IFERROR(-$E54*G54,0)+IFERROR(-$E55*G55,0)+IFERROR(-$E56*G56,0)+IFERROR(-$E57*G57,0)+IFERROR(-$E58*G58,0)+IFERROR(-$E59*G59,0)+IFERROR(-$E60*G60,0)) -> -20 | H62: =IF(+IFERROR(-$E29*H29,0)+IFERROR(-$E30*H30,0)+IFERROR(-$E31*H31,0)+IFERROR(-$E32*H32,0)+IFERROR(-$E33*H33,0)+IFERROR(-$E34*H34,0)+IFERROR(-$E35*H35,0)+IFERROR(-$E36*H36,0)+IFERROR(-$E37*H37,0)+IFERROR(-$E38*H38,0)+IFERROR(-$E39*H39,0)+IFERROR(-$E40*H40,0)+IFERROR(-$E41*H41,0)+IFERROR(-$E42*H42,0)+IFERROR(-$E43*H43,0)+IFERROR(-$E44*H44,0)+IFERROR(-$E45*H45,0)+IFERROR(-$E46*H46,0)+IFERROR(-$E47*H47,0)+IFERROR(-$E48*H48,0)+IFERROR(-$E49*H49,0)+IFERROR(-$E50*H50,0)+IFERROR(-$E51*H51,0)+IFERROR(-$E52*H52,0)+IFERROR(-$E53*H53,0)+IFERROR(-$E54*H54,0)+IFERROR(-$E55*H55,0)+IFERROR(-$E56*H56,0)+IFERROR(-$E57*H57,0)+IFERROR(-$E58*H58,0)+IFERROR(-$E59*H59,0)+IFERROR(-$E60*H60,0)=0,"",+IFERROR(-$E29*H29,0)+IFERROR(-$E30*H30,0)+IFERROR(-$E31*H31,0)+IFERROR(-$E32*H32,0)+IFERROR(-$E33*H33,0)+IFERROR(-$E34*H34,0)+IFERROR(-$E35*H35,0)+IFERROR(-$E36*H36,0)+IFERROR(-$E37*H37,0)+IFERROR(-$E38*H38,0)+IFERROR(-$E39*H39,0)+IFERROR(-$E40*H40,0)+IFERROR(-$E41*H41,0)+IFERROR(-$E42*H42,0)+IFERROR(-$E43*H43,0)+IFERROR(-$E44*H44,0)+IFERROR(-$E45*H45,0)+IFERROR(-$E46*H46,0)+IFERROR(-$E47*H47,0)+IFERROR(-$E48*H48,0)+IFERROR(-$E49*H49,0)+IFERROR(-$E50*H50,0)+IFERROR(-$E51*H51,0)+IFERROR(-$E52*H52,0)+IFERROR(-$E53*H53,0)+IFERROR(-$E54*H54,0)+IFERROR(-$E55*H55,0)+IFERROR(-$E56*H56,0)+IFERROR(-$E57*H57,0)+IFERROR(-$E58*H58,0)+IFERROR(-$E59*H59,0)+IFERROR(-$E60*H60,0)) -> -22
C69: Relevé d'Identité Bancaire | G69: Montant HT | H69: TVA | I69: Montant TTC
C70: Banque Guichet Numéro de compte Clé | F70: Total I | G70: =SUM(G29:G59) -> 700 | H70: =I70-G70 -> 100 | I70: =SUM(H29:H59) -> 800
C71: 00000 00000 00000000000 00 | F71: =IF(G62="","","dont remises") -> dont remises | G71: =IF(G62="","",G62) -> -20 | H71: =IF(F71="","",I71-G71) -> -2 | I71: =IF(H62="","",H62) -> -22
C72: Bank | F72: =IF(G62="","","Total II") -> Total II | G72: =IF($F72="","",G70+G71) -> 680 | H72: =IF($F72="","",H70+H71) -> 98 | I72: =IF($F72="","",I70+I71) -> 778
C73: IBAN : FR00 0000 0000 0000 0000 0000 000 | F73: =IF(E10="OUI","dont acompte:","") -> dont acompte: | G73: =IF($E$10="oui",-G70*0.3,"") -> -210 | H73: =IF($E$10="oui",-H70*0.3,"") -> -30 | I73: -240
C74: BIC : CCCCCCCCCCCC | F74: =IF(AND(F73="",F71=""),"",IF(F72="","Total II","Total III")) -> Total III | G74: =IF(AND(F73="",F71=""),"",IF(F72="",G70+G73,G72+G73)) -> 470 | H74: =IF(AND(G73="",G71=""),"",IF(G72="",H70+H73,H72+H73)) -> 68 | I74: 538
F75: =CONCATENATE("Reste à régler : ",TEXT(ROUND(I75,2),"#### 000")," EUR par ",D76,".") -> Reste à régler : 538 EUR par virement. | I75: =IF(I74<>"",I74,IF(I72<>"",I72,I70)) -> 538
C76: Règlement : | D76: =IF(C29<>"",INDIRECT("'"&$H$4&"'!H"&C29),"") -> virement | F76: Merci de votre confiance.
C77: Échéance : | D77: =EOMONTH(H14+1,0) -> 1900-01-31 | F77: www.xxx.fr | I77: Page 1 sur 1

Sheet Chiffre affaires
A1: année | B1: * | C1: Taper * pour toutes les années
A2: Type | B2: Réalisé
A3: Onglet | B3: Base prestations
A5: Mois | B5: 1 | C5: =B5+1 -> 2 | D5: =C5+1 -> 3 | E5: 4 | F5: 5 | G5: 6 | H5: 7 | I5: 8 | J5: 9 | K5: 10 | L5: 11 | M5: 12
A6: CA | B6: =IF($B$1="*",SUMIFS('Base prestations'!$D:$D,'Base prestations'!$S:$S,B$5,'Base prestations'!$U:$U,$B$2),SUMIFS('Base prestations'!$D:$D,'Base prestations'!$S:$S,B$5,'Base prestations'!$T:$T,$B$1,'Base prestations'!$U:$U,$B$2)) -> 0 | C6: =IF($B$1="*",SUMIFS('Base prestations'!$D:$D,'Base prestations'!$S:$S,C$5,'Base prestations'!$U:$U,$B$2),SUMIFS('Base prestations'!$D:$D,'Base prestations'!$S:$S,C$5,'Base prestations'!$T:$T,$B$1,'Base prestations'!$U:$U,$B$2)) -> 0 | D6: =IF($B$1="*",SUMIFS('Base prestations'!$D:$D,'Base prestations'!$S:$S,D$5,'Base prestations'!$U:$U,$B$2),SUMIFS('Base prestations'!$D:$D,'Base prestations'!$S:$S,D$5,'Base prestations'!$T:$T,$B$1,'Base prestations'!$U:$U,$B$2)) -> 0 | E6: =IF($B$1="*",SUMIFS('Base prestations'!$D:$D,'Base prestations'!$S:$S,E$5,'Base prestations'!$U:$U,$B$2),SUMIFS('Base prestations'!$D:$D,'Base prestations'!$S:$S,E$5,'Base prestations'!$T:$T,$B$1,'Base prestations'!$U:$U,$B$2)) -> 0 | F6: =IF($B$1="*",SUMIFS('Base prestations'!$D:$D,'Base prestations'!$S:$S,F$5,'Base prestations'!$U:$U,$B$2),SUMIFS('Base prestations'!$D:$D,'Base prestations'!$S:$S,F$5,'Base prestations'!$T:$T,$B$1,'Base prestations'!$U:$U,$B$2)) -> 300 | G6: =IF($B$1="*",SUMIFS('Base prestations'!$D:$D,'Base prestations'!$S:$S,G$5,'Base prestations'!$U:$U,$B$2),SUMIFS('Base prestations'!$D:$D,'Base prestations'!$S:$S,G$5,'Base prestations'!$T:$T,$B$1,'Base prestations'!$U:$U,$B$2)) -> 0 | H6: =IF($B$1="*",SUMIFS('Base prestations'!$D:$D,'Base prestations'!$S:$S,H$5,'Base prestations'!$U:$U,$B$2),SUMIFS('Base prestations'!$D:$D,'Base prestations'!$S:$S,H$5,'Base prestations'!$T:$T,$B$1,'Base prestations'!$U:$U,$B$2)) -> 0 | I6: =IF($B$1="*",SUMIFS('Base prestations'!$D:$D,'Base prestations'!$S:$S,I$5,'Base prestations'!$U:$U,$B$2),SUMIFS('Base prestations'!$D:$D,'Base prestations'!$S:$S,I$5,'Base prestations'!$T:$T,$B$1,'Base prestations'!$U:$U,$B$2)) -> 0 | J6: =IF($B$1="*",SUMIFS('Base prestations'!$D:$D,'Base prestations'!$S:$S,J$5,'Base prestations'!$U:$U,$B$2),SUMIFS('Base prestations'!$D:$D,'Base prestations'!$S:$S,J$5,'Base prestations'!$T:$T,$B$1,'Base prestations'!$U:$U,$B$2)) -> 0 | K6: =IF($B$1="*",SUMIFS('Base prestations'!$D:$D,'Base prestations'!$S:$S,K$5,'Base prestations'!$U:$U,$B$2),SUMIFS('Base prestations'!$D:$D,'Base prestations'!$S:$S,K$5,'Base prestations'!$T:$T,$B$1,'Base prestations'!$U:$U,$B$2)) -> 0 | L6: =IF($B$1="*",SUMIFS('Base prestations'!$D:$D,'Base prestations'!$S:$S,L$5,'Base prestations'!$U:$U,$B$2),SUMIFS('Base prestations'!$D:$D,'Base prestations'!$S:$S,L$5,'Base prestations'!$T:$T,$B$1,'Base prestations'!$U:$U,$B$2)) -> 0 | M6: =IF($B$1="*",SUMIFS('Base prestations'!$D:$D,'Base prestations'!$S:$S,M$5,'Base prestations'!$U:$U,$B$2),SUMIFS('Base prestations'!$D:$D,'Base prestations'!$S:$S,M$5,'Base prestations'!$T:$T,$B$1,'Base prestations'!$U:$U,$B$2)) -> 0
B7: Chiffre d'affaires
B8: Ceci est un onglet de consultation, pas de modification possible
B10: =IF(B1="*","Toutes les années",B1) -> Toutes les années | C10: ="Chiffre d'affaires "&B2 -> Chiffre d'affaires Réalisé
A11: 1 | B11: JANVIER | C11: =SUMIF($A$5:$ALL$5,A11,$A$6:$ALL$6) -> 0
A12: 2 | B12: FÉVRIER | C12: =SUMIF($A$5:$ALL$5,A12,$A$6:$ALL$6) -> 0
A13: 3 | B13: MARS | C13: 0
A14: 4 | B14: AVRIL | C14: 0
A15: 5 | B15: MAI | C15: 300
A16: 6 | B16: JUIN | C16: 0
A17: 7 | B17: JUILLET | C17: 0
A18: 8 | B18: AOÛT | C18: 0
A19: 9 | B19: SEPTEMBRE | C19: 0
A20: 10 | B20: OCTOBRE | C20: 0
A21: 11 | B21: NOVEMBRE | C21: 0
A22: 12 | B22: DÉCEMBRE | C22: 0
B24: TOTAL | C24: =SUM(C11:C22) -> 300
A26: année | B26: * | C26: Taper * pour toutes les années
A27: Type | B27: En attente
A28: Onglet | B28: Base prestations
A30: Mois | B30: 1 | C30: =B30+1 -> 2 | D30: =C30+1 -> 3 | E30: =D30+1 -> 4 | F30: =E30+1 -> 5 | G30: =F30+1 -> 6 | H30: =G30+1 -> 7 | I30: =H30+1 -> 8 | J30: =I30+1 -> 9 | K30: =J30+1 -> 10 | L30: =K30+1 -> 11 | M30: =L30+1 -> 12
A31: CA | B31: =IF($B$26="*",SUMIFS('Base prestations'!$D:$D,'Base prestations'!$S:$S,B$30,'Base prestations'!$U:$U,$B$27),SUMIFS('Base prestations'!$D:$D,'Base prestations'!$S:$S,B$30,'Base prestations'!$T:$T,$B$26,'Base prestations'!$U:$U,$B$27)) -> 0 | C31: =IF($B$26="*",SUMIFS('Base prestations'!$D:$D,'Base prestations'!$S:$S,C$30,'Base prestations'!$U:$U,$B$27),SUMIFS('Base prestations'!$D:$D,'Base prestations'!$S:$S,C$30,'Base prestations'!$T:$T,$B$26,'Base prestations'!$U:$U,$B$27)) -> 0 | D31: =IF($B$26="*",SUMIFS('Base prestations'!$D:$D,'Base prestations'!$S:$S,D$30,'Base prestations'!$U:$U,$B$27),SUMIFS('Base prestations'!$D:$D,'Base prestations'!$S:$S,D$30,'Base prestations'!$T:$T,$B$26,'Base prestations'!$U:$U,$B$27)) -> 0 | E31: =IF($B$26="*",SUMIFS('Base prestations'!$D:$D,'Base prestations'!$S:$S,E$30,'Base prestations'!$U:$U,$B$27),SUMIFS('Base prestations'!$D:$D,'Base prestations'!$S:$S,E$30,'Base prestations'!$T:$T,$B$26,'Base prestations'!$U:$U,$B$27)) -> 0 | F31: =IF($B$26="*",SUMIFS('Base prestations'!$D:$D,'Base prestations'!$S:$S,F$30,'Base prestations'!$U:$U,$B$27),SUMIFS('Base prestations'!$D:$D,'Base prestations'!$S:$S,F$30,'Base prestations'!$T:$T,$B$26,'Base prestations'!$U:$U,$B$27)) -> 0 | G31: =IF($B$26="*",SUMIFS('Base prestations'!$D:$D,'Base prestations'!$S:$S,G$30,'Base prestations'!$U:$U,$B$27),SUMIFS('Base prestations'!$D:$D,'Base prestations'!$S:$S,G$30,'Base prestations'!$T:$T,$B$26,'Base prestations'!$U:$U,$B$27)) -> 0 | H31: =IF($B$26="*",SUMIFS('Base prestations'!$D:$D,'Base prestations'!$S:$S,H$30,'Base prestations'!$U:$U,$B$27),SUMIFS('Base prestations'!$D:$D,'Base prestations'!$S:$S,H$30,'Base prestations'!$T:$T,$B$26,'Base prestations'!$U:$U,$B$27)) -> 0 | I31: =IF($B$26="*",SUMIFS('Base prestations'!$D:$D,'Base prestations'!$S:$S,I$30,'Base prestations'!$U:$U,$B$27),SUMIFS('Base prestations'!$D:$D,'Base prestations'!$S:$S,I$30,'Base prestations'!$T:$T,$B$26,'Base prestations'!$U:$U,$B$27)) -> 0 | J31: =IF($B$26="*",SUMIFS('Base prestations'!$D:$D,'Base prestations'!$S:$S,J$30,'Base prestations'!$U:$U,$B$27),SUMIFS('Base prestations'!$D:$D,'Base prestations'!$S:$S,J$30,'Base prestations'!$T:$T,$B$26,'Base prestations'!$U:$U,$B$27)) -> 0 | K31: =IF($B$26="*",SUMIFS('Base prestations'!$D:$D,'Base prestations'!$S:$S,K$30,'Base prestations'!$U:$U,$B$27),SUMIFS('Base prestations'!$D:$D,'Base prestations'!$S:$S,K$30,'Base prestations'!$T:$T,$B$26,'Base prestations'!$U:$U,$B$27)) -> 0 | L31: =IF($B$26="*",SUMIFS('Base prestations'!$D:$D,'Base prestations'!$S:$S,L$30,'Base prestations'!$U:$U,$B$27),SUMIFS('Base prestations'!$D:$D,'Base prestations'!$S:$S,L$30,'Base prestations'!$T:$T,$B$26,'Base prestations'!$U:$U,$B$27)) -> 0 | M31: =IF($B$26="*",SUMIFS('Base prestations'!$D:$D,'Base prestations'!$S:$S,M$30,'Base prestations'!$U:$U,$B$27),SUMIFS('Base prestations'!$D:$D,'Base prestations'!$S:$S,M$30,'Base prestations'!$T:$T,$B$26,'Base prestations'!$U:$U,$B$27)) -> 0
B32: Chiffre d'affaires
B33: Ceci est un onglet de consultation, pas de modification possible
B35: =IF(B26="*","Toutes les années",B26) -> Toutes les années | C35: ="Chiffre d'affaires "&B27 -> Chiffre d'affaires En attente
A36: 1 | B36: JANVIER | C36: =SUMIF($A$30:$ALL$30,A36,$A$31:$ALL$31) -> 0
A37: 2 | B37: FÉVRIER | C37: =SUMIF($A$30:$ALL$30,A37,$A$31:$ALL$31) -> 0
A38: 3 | B38: MARS | C38: 0
A39: 4 | B39: AVRIL | C39: 0
A40: 5 | B40: MAI | C40: 0
A41: 6 | B41: JUIN | C41: 0
A42: 7 | B42: JUILLET | C42: 0
A43: 8 | B43: AOÛT | C43: 0
A44: 9 | B44: SEPTEMBRE | C44: 0
A45: 10 | B45: OCTOBRE | C45: 0
A46: 11 | B46: NOVEMBRE | C46: 0
A47: 12 | B47: DÉCEMBRE | C47: 0
B49: TOTAL | C49: =SUM(C36:C47) -> 0

Sheet outils TTC ou HT
B9: Taux TVA | C9: Montant HT | D9: Montant TVA | E9: Montant TTC
B10: 0.2 | C10: =2405.76-1749 -> 656.76 | D10: =E10-C10 -> 131.352 | E10: =C10*(1+B10) -> 788.112
B12: Taux TVA | C12: Montant HT | D12: Montant TVA | E12: Montant TTC
B13: 0.2 | C13: =E13-D13 -> 1155.758333 | D13: =-E13/(1+B13)+E13 -> 231.1516667 | E13: 1386.91

Sheet Table (hidden)
A1: Prestations
A2: 1
A3: 2
A4: 3
A5: 4
A6: 5
A7: 6
A8: 7
A9: 8
A10: 9
A11: 10
A12: 11
A13: 12
A14: 13
A15: 14
A16: 15
A17: 16
A18: 17
A19: 18
A20: 19
A21: 20
A22: 21
A23: 22
A24: 23
A25: 24
A26: 25
A27: 26
A28: 27
A29: 28
A30: 29
A31: 30
A32: 31
A33: 32
A34: 33
A35: 34
A36: 35
A37: 36
A38: 37
A39: 38
A40: 39
A41: 40
A42: 41
A43: 42
A44: 43
A45: 44
A46: 45
A47: 46
A48: 47
A49: 48
A50: 49
A51: 50
A52: 51
A53: 52
A54: 53
A55: 54
A56: 55
A57: 56
A58: 57
A59: 58
A60: 59
A61: 60
A62: 61
A63: 62
A64: 63
A65: 64
A66: 65
A67: 66
A68: 67
A69: 68
A70: 69
A71: 70
A72: 71
A73: 72
A74: 73
A75: 74
A76: 75
A77: 76
A78: 77
A79: 78
A80: 79
A81: 80
A82: 81
A83: 82
A84: 83
A85: 84
A86: 85
A87: 86
A88: 87
A89: 88
A90: 89
A91: 90
A92: 91
A93: 92
A94: 93
A95: 94
A96: 95
A97: 96
A98: 97
A99: 98
A100: 99
A101: 100
A102: 101
A103: 102
A104: 103
A105: 104
A106: 105
A107: 106
A108: 107
A109: 108
A110: 109
A111: 110
A112: 111
A113: 112
A114: 113
A115: 114
A116: 115
A117: 116
A118: 117
A119: 118
A120: 119
A121: 120
A122: 121
A123: 122
A124: 123
A125: 124
A126: 125
A127: 126
A128: 127
A129: 128
A130: 129
A131: 130
A132: 131
A133: 132
A134: 133
A135: 134
A136: 135
A137: 136
A138: 137
A139: 138
A140: 139
A141: 140
A142: 141
A143: 142
A144: 143
A145: 144
A146: 145
A147: 146
A148: 147
A149: 148
A150: 149
A151: 150
A152: 151
A153: 152
A154: 153
A155: 154
A156: 155
A157: 156
A158: 157
A159: 158
A160: 159
A161: 160
A162: 161
A163: 162
A164: 163
A165: 164
A166: 165
A167: 166
A168: 167
A169: 168
A170: 169
A171: 170
A172: 171
A173: 172
A174: 173
A175: 174
A176: 175
A177: 176
A178: 177
A179: 178
A180: 179
A181: 180
A182: 181
A183: 182
A184: 183
A185: 184
A186: 185
A187: 186
A188: 187
A189: 188
A190: 189
A191: 190
A192: 191
A193: 192
A194: 193
A195: 194
A196: 195
A197: 196
A198: 197
A199: 198
A200: 199
... 2641 more rows
